Workbook

Sheet EM 60 Wurf Damen
A1: 60 Wurf - Einzelmeisterschaft 2019/20 | AA1: Einzelmeisterschaft 2019/20
A2: Ergebnisliste - DAMEN | AA2: Ergebnisliste - DAMEN
A4: Pl. | C4: Name | D4: Ortsgr. | E4: 1. Durchgang | I4: 2. Durchgang | M4: Volle | N4: Abr | O4: Ges | P4: FW | AC4: Name | AD4: Ortsgr. | AE4: 1. Durchgang | AI4: 2. Durchgang | AM4: Volle | AN4: Abr | AO4: Ges | AP4: FW
E5: V | F5: A | G5: G | H5: FW | I5: V | J5: A | K5: G | L5: FW | AE5: V | AF5: A | AG5: G | AH5: FW | AI5: V | AJ5: A | AK5: G | AL5: FW
A6: 1 | B6: 331 | C6: Kofler Christine | D6: Dornbirn | E6: 88 | F6: 45 | G6: 133 | H6: 0 | I6: 83 | J6: 33 | K6: 116 | L6: 3 | M6: 171 | N6: 78 | O6: 249 | P6: 3 | AA6: 1 | AB6: 463 | AC6: =IF($AB$6:$AB$29="","",VLOOKUP($AB$6:$AB$29,Spielerliste!$A$1:$C$480,2)) -> Nussbaumer Anny | AD6: =IF($AB$6:$AB$29="","",VLOOKUP($AB$6:$AB$29,Spielerliste!$A$1:$C$480,3)) -> ESV Br-Wo | AE6: 71 | AF6: =AG6-AE6 -> 26 | AG6: 97 | AH6: 8 | AI6: 87 | AJ6: =AK6-AI6 -> 25 | AK6: 112 | AL6: 6 | AM6: =AE6+AI6 -> 158 | AN6: =AF6+AJ6 -> 51 | AO6: =AG6+AK6 -> 209 | AP6: =AH6+AL6 -> 14
A7: 2 | B7: 439 | C7: Maier Annemarie | D7: Vandans | E7: 82 | F7: 35 | G7: 117 | H7: 2 | I7: 89 | J7: 42 | K7: 131 | L7: 3 | M7: 171 | N7: 77 | O7: 248 | P7: 5 | AA7: 2 | AB7: 465 | AC7: =IF($AB$6:$AB$29="","",VLOOKUP($AB$6:$AB$29,Spielerliste!$A$1:$C$480,2)) -> Weinmüller Karin | AD7: =IF($AB$6:$AB$29="","",VLOOKUP($AB$6:$AB$29,Spielerliste!$A$1:$C$480,3)) -> ESV Br-Wo | AE7: 77 | AF7: 33 | AG7: 110 | AH7: 4 | AI7: 73 | AJ7: 24 | AK7: 97 | AL7: 4 | AM7: 150 | AN7: 57 | AO7: 207 | AP7: 8
A8: 3 | B8: 373 | C8: Hämmerle Sabine | D8: Koblach | E8: 84 | F8: 53 | G8: 137 | H8: 1 | I8: 75 | J8: 35 | K8: 110 | L8: 4 | M8: 159 | N8: 88 | O8: 247 | P8: 5 | AA8: 3 | AB8: 387 | AC8: =IF($AB$6:$AB$29="","",VLOOKUP($AB$6:$AB$29,Spielerliste!$A$1:$C$480,2)) -> Fessler Hildegard | AD8: =IF($AB$6:$AB$29="","",VLOOKUP($AB$6:$AB$29,Spielerliste!$A$1:$C$480,3)) -> Lustenau | AE8: 65 | AF8: 35 | AG8: 100 | AH8: 6 | AI8: 71 | AJ8: 33 | AK8: 104 | AL8: 2 | AM8: 136 | AN8: 68 | AO8: 204 | AP8: 8
A9: 4 | B9: 413 | C9: Müller Hildegard | D9: Nofels | E9: 92 | F9: 26 | G9: 118 | H9: 4 | I9: 94 | J9: 35 | K9: 129 | L9: 3 | M9: 186 | N9: 61 | O9: 247 | P9: 7 | AA9: 4 | AB9: 389 | AC9: =IF($AB$6:$AB$29="","",VLOOKUP($AB$6:$AB$29,Spielerliste!$A$1:$C$480,2)) -> Loidl Josefine | AD9: =IF($AB$6:$AB$29="","",VLOOKUP($AB$6:$AB$29,Spielerliste!$A$1:$C$480,3)) -> Lustenau | AE9: 81 | AF9: 17 | AG9: 98 | AH9: 10 | AI9: 78 | AJ9: 17 | AK9: 95 | AL9: 9 | AM9: 159 | AN9: 34 | AO9: 193 | AP9: 19
A10: 5 | B10: 324 | C10: Scherrer Luise | D10: Bürs | E10: 86 | F10: 35 | G10: 121 | H10: 2 | I10: 87 | J10: 35 | K10: 122 | L10: 1 | M10: 173 | N10: 70 | O10: 243 | P10: 3 | AA10: 5 | AB10: 391 | AC10: =IF($AB$6:$AB$29="","",VLOOKUP($AB$6:$AB$29,Spielerliste!$A$1:$C$480,2)) -> Salzmann Elvira | AD10: =IF($AB$6:$AB$29="","",VLOOKUP($AB$6:$AB$29,Spielerliste!$A$1:$C$480,3)) -> Lustenau | AE10: 86 | AF10: 18 | AG10: 104 | AH10: 7 | AI10: 79 | AJ10: 25 | AK10: 104 | AL10: 5 | AM10: 165 | AN10: 43 | AO10: 208 | AP10: 12
A11: 6 | B11: 401 | C11: Lindner Margit | D11: Mäder | E11: 79 | F11: 49 | G11: 128 | H11: 2 | I11: 79 | J11: 35 | K11: 114 | L11: 2 | M11: 158 | N11: 84 | O11: 242 | P11: 4 | AA11: 6 | AB11: 392 | AC11: =IF($AB$6:$AB$29="","",VLOOKUP($AB$6:$AB$29,Spielerliste!$A$1:$C$480,2)) -> Schelling Hedi | AD11: =IF($AB$6:$AB$29="","",VLOOKUP($AB$6:$AB$29,Spielerliste!$A$1:$C$480,3)) -> Lustenau | AE11: 83 | AF11: 25 | AG11: 108 | AH11: 5 | AI11: 79 | AJ11: 48 | AK11: 127 | AL11: 0 | AM11: 162 | AN11: 73 | AO11: 235 | AP11: 5
A12: 7 | B12: 451 | C12: Gutmann Lore | D12: Wolfurt | E12: 76 | F12: 43 | G12: 119 | H12: 1 | I12: 87 | J12: 35 | K12: 122 | L12: 2 | M12: 163 | N12: 78 | O12: 241 | P12: 3 | AA12: 7 | AB12: 355 | AC12: =IF($AB$6:$AB$29="","",VLOOKUP($AB$6:$AB$29,Spielerliste!$A$1:$C$480,2)) -> Theiner Elfriede | AD12: =IF($AB$6:$AB$29="","",VLOOKUP($AB$6:$AB$29,Spielerliste!$A$1:$C$480,3)) -> Götzis | AE12: 82 | AF12: 35 | AG12: 117 | AH12: 3 | AI12: 77 | AJ12: 35 | AK12: 112 | AL12: 3 | AM12: 159 | AN12: 70 | AO12: 229 | AP12: 6
A13: 8 | B13: 314 | C13: Schneider Steffi | D13: Bregenz | E13: 86 | F13: 36 | G13: 122 | H13: 1 | I13: 82 | J13: 34 | K13: 116 | L13: 2 | M13: 168 | N13: 70 | O13: 238 | P13: 3 | AA13: 8 | AB13: 354 | AC13: =IF($AB$6:$AB$29="","",VLOOKUP($AB$6:$AB$29,Spielerliste!$A$1:$C$480,2)) -> Scherz Christine | AD13: =IF($AB$6:$AB$29="","",VLOOKUP($AB$6:$AB$29,Spielerliste!$A$1:$C$480,3)) -> Götzis | AE13: 76 | AF13: 27 | AG13: 103 | AH13: 5 | AI13: 76 | AJ13: 25 | AK13: 101 | AL13: 6 | AM13: 152 | AN13: 52 | AO13: 204 | AP13: 11
A14: 9 | B14: 393 | C14: Stipetic Marija | D14: Lustenau | E14: 81 | F14: 30 | G14: 111 | H14: 5 | I14: 91 | J14: 34 | K14: 125 | L14: 2 | M14: 172 | N14: 64 | O14: 236 | P14: 7 | AA14: 9 | AB14: 352 | AC14: =IF($AB$6:$AB$29="","",VLOOKUP($AB$6:$AB$29,Spielerliste!$A$1:$C$480,2)) -> Mally Marlene | AD14: =IF($AB$6:$AB$29="","",VLOOKUP($AB$6:$AB$29,Spielerliste!$A$1:$C$480,3)) -> Götzis | AE14: 74 | AF14: 42 | AG14: 116 | AH14: 1 | AI14: 72 | AJ14: 27 | AK14: 99 | AL14: 4 | AM14: 146 | AN14: 69 | AO14: 215 | AP14: 5
A15: 10 | B15: 392 | C15: Schelling Hedi | D15: Lustenau | E15: 83 | F15: 25 | G15: 108 | H15: 5 | I15: 79 | J15: 48 | K15: 127 | L15: 0 | M15: 162 | N15: 73 | O15: 235 | P15: 5 | AA15: 10 | AB15: 472 | AC15: =IF($AB$6:$AB$29="","",VLOOKUP($AB$6:$AB$29,Spielerliste!$A$1:$C$480,2)) -> Klinger Inge | AD15: =IF($AB$6:$AB$29="","",VLOOKUP($AB$6:$AB$29,Spielerliste!$A$1:$C$480,3)) -> Partenen | AE15: 81 | AF15: 34 | AG15: 115 | AH15: 2 | AI15: 56 | AJ15: 33 | AK15: 89 | AL15: 4 | AM15: 137 | AN15: 67 | AO15: 204 | AP15: 6
A16: 11 | B16: 428 | C16: Gobbi Erika | D16: Rheindelta | E16: 85 | F16: 35 | G16: 120 | H16: 3 | I16: 88 | J16: 27 | K16: 115 | L16: 3 | M16: 173 | N16: 62 | O16: 235 | P16: 6 | AA16: 11 | AB16: 475 | AC16: =IF($AB$6:$AB$29="","",VLOOKUP($AB$6:$AB$29,Spielerliste!$A$1:$C$480,2)) -> Stemer Marianne | AD16: =IF($AB$6:$AB$29="","",VLOOKUP($AB$6:$AB$29,Spielerliste!$A$1:$C$480,3)) -> Partenen | AE16: 67 | AF16: 26 | AG16: 93 | AH16: 5 | AI16: 70 | AJ16: 34 | AK16: 104 | AL16: 4 | AM16: 137 | AN16: 60 | AO16: 197 | AP16: 9
A17: 12 | B17: 443 | C17: Ströhle Renate | D17: Vandans | E17: 82 | F17: 26 | G17: 108 | H17: 5 | I17: 84 | J17: 42 | K17: 126 | L17: 3 | M17: 166 | N17: 68 | O17: 234 | P17: 8 | AA17: 12 | AB17: 473 | AC17: =IF($AB$6:$AB$29="","",VLOOKUP($AB$6:$AB$29,Spielerliste!$A$1:$C$480,2)) -> Munz Renate | AD17: =IF($AB$6:$AB$29="","",VLOOKUP($AB$6:$AB$29,Spielerliste!$A$1:$C$480,3)) -> Partenen | AE17: 65 | AF17: 26 | AG17: 91 | AH17: 6 | AI17: 73 | AJ17: 41 | AK17: 114 | AL17: 1 | AM17: 138 | AN17: 67 | AO17: 205 | AP17: 7
A18: 13 | B18: 343 | C18: Speckle Irene | D18: Feldkirch | E18: 92 | F18: 24 | G18: 116 | H18: 5 | I18: 81 | J18: 36 | K18: 117 | L18: 1 | M18: 173 | N18: 60 | O18: 233 | P18: 6 | AA18: 13 | AB18: 471 | AC18: =IF($AB$6:$AB$29="","",VLOOKUP($AB$6:$AB$29,Spielerliste!$A$1:$C$480,2)) -> Bitschnau Gerti | AD18: =IF($AB$6:$AB$29="","",VLOOKUP($AB$6:$AB$29,Spielerliste!$A$1:$C$480,3)) -> Partenen | AE18: 49 | AF18: 9 | AG18: 58 | AH18: 12 | AI18: 75 | AJ18: 13 | AK18: 88 | AL18: 9 | AM18: 124 | AN18: 22 | AO18: 146 | AP18: 21
A19: 14 | B19: 355 | C19: Theiner Elfriede | D19: Götzis | E19: 82 | F19: 35 | G19: 117 | H19: 3 | I19: 77 | J19: 35 | K19: 112 | L19: 3 | M19: 159 | N19: 70 | O19: 229 | P19: 6 | AA19: 14 | AB19: 436 | AC19: =IF($AB$6:$AB$29="","",VLOOKUP($AB$6:$AB$29,Spielerliste!$A$1:$C$480,2)) -> Bitschnau Ursula | AD19: =IF($AB$6:$AB$29="","",VLOOKUP($AB$6:$AB$29,Spielerliste!$A$1:$C$480,3)) -> Vandans | AE19: 86 | AF19: 26 | AG19: 112 | AH19: 5 | AI19: 73 | AJ19: 43 | AK19: 116 | AL19: 3 | AM19: 159 | AN19: 69 | AO19: 228 | AP19: 8
A20: 15 | B20: 436 | C20: Bitschnau Ursula | D20: Vandans | E20: 86 | F20: 26 | G20: 112 | H20: 5 | I20: 73 | J20: 43 | K20: 116 | L20: 3 | M20: 159 | N20: 69 | O20: 228 | P20: 8 | AA20: 15 | AB20: 439 | AC20: =IF($AB$6:$AB$29="","",VLOOKUP($AB$6:$AB$29,Spielerliste!$A$1:$C$480,2)) -> Maier Annemarie | AD20: =IF($AB$6:$AB$29="","",VLOOKUP($AB$6:$AB$29,Spielerliste!$A$1:$C$480,3)) -> Vandans | AE20: 82 | AF20: 35 | AG20: 117 | AH20: 2 | AI20: 89 | AJ20: 42 | AK20: 131 | AL20: 3 | AM20: 171 | AN20: 77 | AO20: 248 | AP20: 5
A21: 16 | B21: 363 | C21: Woinesich Eva | D21: Hard | E21: 70 | F21: 34 | G21: 104 | H21: 3 | I21: 92 | J21: 32 | K21: 124 | L21: 2 | M21: 162 | N21: 66 | O21: 228 | P21: 5 | AA21: 16 | AB21: 441 | AC21: =IF($AB$6:$AB$29="","",VLOOKUP($AB$6:$AB$29,Spielerliste!$A$1:$C$480,2)) -> Salzgeber Margret | AD21: =IF($AB$6:$AB$29="","",VLOOKUP($AB$6:$AB$29,Spielerliste!$A$1:$C$480,3)) -> Vandans | AE21: 85 | AF21: 27 | AG21: 112 | AH21: 5 | AI21: 68 | AJ21: 31 | AK21: 99 | AL21: 5 | AM21: 153 | AN21: 58 | AO21: 211 | AP21: 10
A22: 17 | B22: 461 | C22: Kohler Brigitte | D22: ESV Br-Wo | E22: 90 | F22: 34 | G22: 124 | H22: 3 | I22: 79 | J22: 25 | K22: 104 | L22: 4 | M22: 169 | N22: 59 | O22: 228 | P22: 7 | AA22: 17 | AB22: 443 | AC22: =IF($AB$6:$AB$29="","",VLOOKUP($AB$6:$AB$29,Spielerliste!$A$1:$C$480,2)) -> Ströhle Renate | AD22: =IF($AB$6:$AB$29="","",VLOOKUP($AB$6:$AB$29,Spielerliste!$A$1:$C$480,3)) -> Vandans | AE22: 82 | AF22: 26 | AG22: 108 | AH22: 5 | AI22: 84 | AJ22: 42 | AK22: 126 | AL22: 3 | AM22: 166 | AN22: 68 | AO22: 234 | AP22: 8
A23: 18 | B23: 399 | C23: Hinteregger Steffi | D23: Mäder | E23: 85 | F23: 29 | G23: 114 | H23: 5 | I23: 76 | J23: 35 | K23: 111 | L23: 5 | M23: 161 | N23: 64 | O23: 225 | P23: 10 | AA23: 18 | AB23: 461 | AC23: =IF($AB$6:$AB$29="","",VLOOKUP($AB$6:$AB$29,Spielerliste!$A$1:$C$480,2)) -> Kohler Brigitte | AD23: =IF($AB$6:$AB$29="","",VLOOKUP($AB$6:$AB$29,Spielerliste!$A$1:$C$480,3)) -> ESV Br-Wo | AE23: 90 | AF23: 34 | AG23: 124 | AH23: 3 | AI23: 79 | AJ23: 25 | AK23: 104 | AL23: 4 | AM23: 169 | AN23: 59 | AO23: 228 | AP23: 7
A24: 19 | B24: 334 | C24: Oblak Heidi | D24: Dornbirn | E24: 72 | F24: 34 | G24: 106 | H24: 4 | I24: 84 | J24: 34 | K24: 118 | L24: 2 | M24: 156 | N24: 68 | O24: 224 | P24: 6 | AA24: 19 | AB24: 341 | AC24: =IF($AB$6:$AB$29="","",VLOOKUP($AB$6:$AB$29,Spielerliste!$A$1:$C$480,2)) -> Getsch Lotte | AD24: =IF($AB$6:$AB$29="","",VLOOKUP($AB$6:$AB$29,Spielerliste!$A$1:$C$480,3)) -> Feldkirch | AE24: 66 | AF24: 25 | AG24: 91 | AH24: 6 | AI24: 79 | AJ24: 35 | AK24: 114 | AL24: 3 | AM24: 145 | AN24: 60 | AO24: 205 | AP24: 9
A25: 20 | B25: 326 | C25: Witting Magdalena | D25: Bürs | E25: 86 | F25: 33 | G25: 119 | H25: 4 | I25: 79 | J25: 25 | K25: 104 | L25: 5 | M25: 165 | N25: 58 | O25: 223 | P25: 9 | AA25: 20 | AC25: =IF($AB$6:$AB$29="","",VLOOKUP($AB$6:$AB$29,Spielerliste!$A$1:$C$480,2)) ->  | AD25: =IF($AB$6:$AB$29="","",VLOOKUP($AB$6:$AB$29,Spielerliste!$A$1:$C$480,3)) ->  | AF25: 0 | AJ25: 0 | AM25: 0 | AN25: 0 | AO25: 0 | AP25: 0
A26: 21 | B26: 333 | C26: Mayr Ernestine | D26: Dornbirn | E26: 80 | F26: 33 | G26: 113 | H26: 4 | I26: 73 | J26: 35 | K26: 108 | L26: 3 | M26: 153 | N26: 68 | O26: 221 | P26: 7 | AA26: 21 | AC26: =IF($AB$6:$AB$29="","",VLOOKUP($AB$6:$AB$29,Spielerliste!$A$1:$C$480,2)) ->  | AD26: =IF($AB$6:$AB$29="","",VLOOKUP($AB$6:$AB$29,Spielerliste!$A$1:$C$480,3)) ->  | AF26: 0 | AJ26: 0 | AM26: 0 | AN26: 0 | AO26: 0 | AP26: 0
A27: 22 | B27: 412 | C27: Mair Wilma | D27: Nofels | E27: 74 | F27: 25 | G27: 99 | H27: 7 | I27: 94 | J27: 25 | K27: 119 | L27: 6 | M27: 168 | N27: 50 | O27: 218 | P27: 13 | AA27: 22 | AB27: 397 | AC27: =IF($AB$6:$AB$29="","",VLOOKUP($AB$6:$AB$29,Spielerliste!$A$1:$C$480,2)) -> Ebenhoch Monika | AD27: =IF($AB$6:$AB$29="","",VLOOKUP($AB$6:$AB$29,Spielerliste!$A$1:$C$480,3)) -> Mäder | AE27: 73 | AF27: 34 | AG27: 107 | AH27: 2 | AI27: 73 | AJ27: 35 | AK27: 108 | AL27: 3 | AM27: 146 | AN27: 69 | AO27: 215 | AP27: 5
A28: 23 | B28: 402 | C28: Stiegler Silvia | D28: Mäder | E28: 78 | F28: 27 | G28: 105 | H28: 5 | I28: 75 | J28: 36 | K28: 111 | L28: 4 | M28: 153 | N28: 63 | O28: 216 | P28: 9 | AA28: 23 | AB28: 399 | AC28: =IF($AB$6:$AB$29="","",VLOOKUP($AB$6:$AB$29,Spielerliste!$A$1:$C$480,2)) -> Hinteregger Steffi | AD28: =IF($AB$6:$AB$29="","",VLOOKUP($AB$6:$AB$29,Spielerliste!$A$1:$C$480,3)) -> Mäder | AE28: 85 | AF28: 29 | AG28: 114 | AH28: 5 | AI28: 76 | AJ28: 35 | AK28: 111 | AL28: 5 | AM28: 161 | AN28: 64 | AO28: 225 | AP28: 10
A29: 24 | B29: 352 | C29: Mally Marlene | D29: Götzis | E29: 74 | F29: 42 | G29: 116 | H29: 1 | I29: 72 | J29: 27 | K29: 99 | L29: 4 | M29: 146 | N29: 69 | O29: 215 | P29: 5 | AA29: 24 | AB29: 401 | AC29: =IF($AB$6:$AB$51="","",VLOOKUP($AB$6:$AB$51,Spielerliste!$A$1:$C$480,2)) -> Lindner Margit | AD29: =IF($AB$6:$AB$51="","",VLOOKUP($AB$6:$AB$51,Spielerliste!$A$1:$C$480,3)) -> Mäder | AE29: 79 | AF29: 49 | AG29: 128 | AH29: 2 | AI29: 79 | AJ29: 35 | AK29: 114 | AL29: 2 | AM29: 158 | AN29: 84 | AO29: 242 | AP29: 4
A30: 25 | B30: 397 | C30: Ebenhoch Monika | D30: Mäder | E30: 73 | F30: 34 | G30: 107 | H30: 2 | I30: 73 | J30: 35 | K30: 108 | L30: 3 | M30: 146 | N30: 69 | O30: 215 | P30: 5 | AA30: 25 | AB30: 402 | AC30: =IF($AB$6:$AB$51="","",VLOOKUP($AB$6:$AB$51,Spielerliste!$A$1:$C$480,2)) -> Stiegler Silvia | AD30: =IF($AB$6:$AB$51="","",VLOOKUP($AB$6:$AB$51,Spielerliste!$A$1:$C$480,3)) -> Mäder | AE30: 78 | AF30: 27 | AG30: 105 | AH30: 5 | AI30: 75 | AJ30: 36 | AK30: 111 | AL30: 4 | AM30: 153 | AN30: 63 | AO30: 216 | AP30: 9
A31: 26 | B31: 337 | C31: Seidler Elisabeth | D31: Dornbirn | E31: 78 | F31: 33 | G31: 111 | H31: 2 | I31: 69 | J31: 34 | K31: 103 | L31: 6 | M31: 147 | N31: 67 | O31: 214 | P31: 8 | AA31: 26 | AB31: 403 | AC31: =IF($AB$6:$AB$51="","",VLOOKUP($AB$6:$AB$51,Spielerliste!$A$1:$C$480,2)) -> Stracker Anna | AD31: =IF($AB$6:$AB$51="","",VLOOKUP($AB$6:$AB$51,Spielerliste!$A$1:$C$480,3)) -> Mäder | AE31: 81 | AF31: 18 | AG31: 99 | AH31: 9 | AI31: 80 | AJ31: 18 | AK31: 98 | AL31: 7 | AM31: 161 | AN31: 36 | AO31: 197 | AP31: 16
A32: 27 | B32: 452 | C32: Lick Brunhilde | D32: Wolfurt | E32: 63 | F32: 45 | G32: 108 | H32: 1 | I32: 78 | J32: 27 | K32: 105 | L32: 6 | M32: 141 | N32: 72 | O32: 213 | P32: 7 | AA32: 27 | AB32: 322 | AC32: =IF($AB$6:$AB$51="","",VLOOKUP($AB$6:$AB$51,Spielerliste!$A$1:$C$480,2)) -> Leimgruber Roswitha | AD32: =IF($AB$6:$AB$51="","",VLOOKUP($AB$6:$AB$51,Spielerliste!$A$1:$C$480,3)) -> Bürs | AE32: 84 | AF32: 24 | AG32: 108 | AH32: 4 | AI32: 60 | AJ32: 17 | AK32: 77 | AL32: 6 | AM32: 144 | AN32: 41 | AO32: 185 | AP32: 10
A33: 28 | B33: 431 | C33: Stückler Hermi | D33: Rheindelta | E33: 70 | F33: 31 | G33: 101 | H33: 6 | I33: 85 | J33: 26 | K33: 111 | L33: 6 | M33: 155 | N33: 57 | O33: 212 | P33: 12 | AA33: 28 | AB33: 326 | AC33: =IF($AB$6:$AB$51="","",VLOOKUP($AB$6:$AB$51,Spielerliste!$A$1:$C$480,2)) -> Witting Magdalena | AD33: =IF($AB$6:$AB$51="","",VLOOKUP($AB$6:$AB$51,Spielerliste!$A$1:$C$480,3)) -> Bürs | AE33: 86 | AF33: 33 | AG33: 119 | AH33: 4 | AI33: 79 | AJ33: 25 | AK33: 104 | AL33: 5 | AM33: 165 | AN33: 58 | AO33: 223 | AP33: 9
A34: 29 | B34: 442 | C34: Sinko Lotte | D34: Vandans | E34: 82 | F34: 33 | G34: 115 | H34: 1 | I34: 70 | J34: 26 | K34: 96 | L34: 7 | M34: 152 | N34: 59 | O34: 211 | P34: 8 | AA34: 29 | AB34: 324 | AC34: =IF($AB$6:$AB$51="","",VLOOKUP($AB$6:$AB$51,Spielerliste!$A$1:$C$480,2)) -> Scherrer Luise | AD34: =IF($AB$6:$AB$51="","",VLOOKUP($AB$6:$AB$51,Spielerliste!$A$1:$C$480,3)) -> Bürs | AE34: 86 | AF34: 35 | AG34: 121 | AH34: 2 | AI34: 87 | AJ34: 35 | AK34: 122 | AL34: 1 | AM34: 173 | AN34: 70 | AO34: 243 | AP34: 3
A35: 30 | B35: 321 | C35: Hepberger Monika | D35: Bürs | E35: 64 | F35: 27 | G35: 91 | H35: 3 | I35: 88 | J35: 32 | K35: 120 | L35: 6 | M35: 152 | N35: 59 | O35: 211 | P35: 9 | AA35: 30 | AB35: 321 | AC35: =IF($AB$6:$AB$51="","",VLOOKUP($AB$6:$AB$51,Spielerliste!$A$1:$C$480,2)) -> Hepberger Monika | AD35: =IF($AB$6:$AB$51="","",VLOOKUP($AB$6:$AB$51,Spielerliste!$A$1:$C$480,3)) -> Bürs | AE35: 64 | AF35: 27 | AG35: 91 | AH35: 3 | AI35: 88 | AJ35: 32 | AK35: 120 | AL35: 6 | AM35: 152 | AN35: 59 | AO35: 211 | AP35: 9
A36: 31 | B36: 441 | C36: Salzgeber Margret | D36: Vandans | E36: 85 | F36: 27 | G36: 112 | H36: 5 | I36: 68 | J36: 31 | K36: 99 | L36: 5 | M36: 153 | N36: 58 | O36: 211 | P36: 10 | AA36: 31 | AB36: 323 | AC36: =IF($AB$6:$AB$51="","",VLOOKUP($AB$6:$AB$51,Spielerliste!$A$1:$C$480,2)) -> Pfeifer Gertrud | AD36: =IF($AB$6:$AB$51="","",VLOOKUP($AB$6:$AB$51,Spielerliste!$A$1:$C$480,3)) -> Bürs | AE36: 57 | AF36: 20 | AG36: 77 | AH36: 7 | AI36: 68 | AJ36: 32 | AK36: 100 | AL36: 6 | AM36: 125 | AN36: 52 | AO36: 177 | AP36: 13
A37: 32 | B37: 463 | C37: Nussbaumer Anny | D37: ESV Br-Wo | E37: 71 | F37: 26 | G37: 97 | H37: 8 | I37: 87 | J37: 25 | K37: 112 | L37: 6 | M37: 158 | N37: 51 | O37: 209 | P37: 14 | AA37: 32 | AB37: 325 | AC37: =IF($AB$6:$AB$51="","",VLOOKUP($AB$6:$AB$51,Spielerliste!$A$1:$C$480,2)) -> Stadlmayr Yvonne | AD37: =IF($AB$6:$AB$51="","",VLOOKUP($AB$6:$AB$51,Spielerliste!$A$1:$C$480,3)) -> Bürs | AE37: 49 | AF37: 44 | AG37: 93 | AH37: 3 | AI37: 65 | AJ37: 16 | AK37: 81 | AL37: 8 | AM37: 114 | AN37: 60 | AO37: 174 | AP37: 11
A38: 33 | B38: 427 | C38: Car Herta | D38: Rheindelta | E38: 80 | F38: 18 | G38: 98 | H38: 8 | I38: 76 | J38: 34 | K38: 110 | L38: 1 | M38: 156 | N38: 52 | O38: 208 | P38: 9 | AA38: 33 | AB38: 431 | AC38: =IF($AB$6:$AB$51="","",VLOOKUP($AB$6:$AB$51,Spielerliste!$A$1:$C$480,2)) -> Stückler Hermi | AD38: =IF($AB$6:$AB$51="","",VLOOKUP($AB$6:$AB$51,Spielerliste!$A$1:$C$480,3)) -> Rheindelta | AE38: 70 | AF38: 31 | AG38: 101 | AH38: 6 | AI38: 85 | AJ38: 26 | AK38: 111 | AL38: 6 | AM38: 155 | AN38: 57 | AO38: 212 | AP38: 12
A39: 34 | B39: 361 | C39: Di-Meglio Gerda | D39: Hard | E39: 79 | F39: 26 | G39: 105 | H39: 4 | I39: 79 | J39: 24 | K39: 103 | L39: 6 | M39: 158 | N39: 50 | O39: 208 | P39: 10 | AA39: 34 | AC39: =IF($AB$6:$AB$51="","",VLOOKUP($AB$6:$AB$51,Spielerliste!$A$1:$C$480,2)) ->  | AD39: =IF($AB$6:$AB$51="","",VLOOKUP($AB$6:$AB$51,Spielerliste!$A$1:$C$480,3)) ->  | AF39: 0 | AJ39: 0 | AM39: 0 | AN39: 0 | AO39: 0 | AP39: 0
A40: 35 | B40: 391 | C40: Salzmann Elvira | D40: Lustenau | E40: 86 | F40: 18 | G40: 104 | H40: 7 | I40: 79 | J40: 25 | K40: 104 | L40: 5 | M40: 165 | N40: 43 | O40: 208 | P40: 12 | AA40: 35 | AB40: 343 | AC40: =IF($AB$6:$AB$51="","",VLOOKUP($AB$6:$AB$51,Spielerliste!$A$1:$C$480,2)) -> Speckle Irene | AD40: =IF($AB$6:$AB$51="","",VLOOKUP($AB$6:$AB$51,Spielerliste!$A$1:$C$480,3)) -> Feldkirch | AE40: 92 | AF40: 24 | AG40: 116 | AH40: 5 | AI40: 81 | AJ40: 36 | AK40: 117 | AL40: 1 | AM40: 173 | AN40: 60 | AO40: 233 | AP40: 6
A41: 36 | B41: 353 | C41: Schatzmann Doris | D41: Götzis | E41: 74 | F41: 31 | G41: 105 | H41: 4 | I41: 75 | J41: 27 | K41: 102 | L41: 5 | M41: 149 | N41: 58 | O41: 207 | P41: 9 | AA41: 36 | AB41: 430 | AC41: =IF($AB$6:$AB$51="","",VLOOKUP($AB$6:$AB$51,Spielerliste!$A$1:$C$480,2)) -> Schobel Monika | AD41: =IF($AB$6:$AB$51="","",VLOOKUP($AB$6:$AB$51,Spielerliste!$A$1:$C$480,3)) -> Rheindelta | AE41: 72 | AF41: 18 | AG41: 90 | AH41: 6 | AI41: 75 | AJ41: 17 | AK41: 92 | AL41: 6 | AM41: 147 | AN41: 35 | AO41: 182 | AP41: 12
A42: 37 | B42: 465 | C42: Weinmüller Karin | D42: ESV Br-Wo | E42: 77 | F42: 33 | G42: 110 | H42: 4 | I42: 73 | J42: 24 | K42: 97 | L42: 4 | M42: 150 | N42: 57 | O42: 207 | P42: 8 | AA42: 37 | AB42: 428 | AC42: =IF($AB$6:$AB$51="","",VLOOKUP($AB$6:$AB$51,Spielerliste!$A$1:$C$480,2)) -> Gobbi Erika | AD42: =IF($AB$6:$AB$51="","",VLOOKUP($AB$6:$AB$51,Spielerliste!$A$1:$C$480,3)) -> Rheindelta | AE42: 85 | AF42: 35 | AG42: 120 | AH42: 3 | AI42: 88 | AJ42: 27 | AK42: 115 | AL42: 3 | AM42: 173 | AN42: 62 | AO42: 235 | AP42: 6
A43: 38 | B43: 332 | C43: Kuncic Eleonora | D43: Dornbirn | E43: 81 | F43: 15 | G43: 96 | H43: 9 | I43: 76 | J43: 35 | K43: 111 | L43: 4 | M43: 157 | N43: 50 | O43: 207 | P43: 13 | AA43: 38 | AB43: 427 | AC43: =IF($AB$6:$AB$51="","",VLOOKUP($AB$6:$AB$51,Spielerliste!$A$1:$C$480,2)) -> Car Herta | AD43: =IF($AB$6:$AB$51="","",VLOOKUP($AB$6:$AB$51,Spielerliste!$A$1:$C$480,3)) -> Rheindelta | AE43: 80 | AF43: 18 | AG43: 98 | AH43: 8 | AI43: 76 | AJ43: 34 | AK43: 110 | AL43: 1 | AM43: 156 | AN43: 52 | AO43: 208 | AP43: 9
A44: 39 | B44: 473 | C44: Munz Renate | D44: Partenen | E44: 65 | F44: 26 | G44: 91 | H44: 6 | I44: 73 | J44: 41 | K44: 114 | L44: 1 | M44: 138 | N44: 67 | O44: 205 | P44: 7 | AA44: 39 | AB44: 426 | AC44: =IF($AB$6:$AB$51="","",VLOOKUP($AB$6:$AB$51,Spielerliste!$A$1:$C$480,2)) -> Bernard Hilde | AD44: =IF($AB$6:$AB$51="","",VLOOKUP($AB$6:$AB$51,Spielerliste!$A$1:$C$480,3)) -> Rheindelta | AE44: 51 | AF44: 19 | AG44: 70 | AH44: 9 | AI44: 67 | AJ44: 30 | AK44: 97 | AL44: 6 | AM44: 118 | AN44: 49 | AO44: 167 | AP44: 15
A45: 40 | B45: 341 | C45: Getsch Lotte | D45: Feldkirch | E45: 66 | F45: 25 | G45: 91 | H45: 6 | I45: 79 | J45: 35 | K45: 114 | L45: 3 | M45: 145 | N45: 60 | O45: 205 | P45: 9 | AA45: 40 | AB45: 361 | AC45: =IF($AB$6:$AB$51="","",VLOOKUP($AB$6:$AB$51,Spielerliste!$A$1:$C$480,2)) -> Di-Meglio Gerda | AD45: =IF($AB$6:$AB$51="","",VLOOKUP($AB$6:$AB$51,Spielerliste!$A$1:$C$480,3)) -> Hard | AE45: 79 | AF45: 26 | AG45: 105 | AH45: 4 | AI45: 79 | AJ45: 24 | AK45: 103 | AL45: 6 | AM45: 158 | AN45: 50 | AO45: 208 | AP45: 10
A46: 41 | B46: 387 | C46: Fessler Hildegard | D46: Lustenau | E46: 65 | F46: 35 | G46: 100 | H46: 6 | I46: 71 | J46: 33 | K46: 104 | L46: 2 | M46: 136 | N46: 68 | O46: 204 | P46: 8 | AA46: 41 | AB46: 421 | AC46: =IF($AB$6:$AB$51="","",VLOOKUP($AB$6:$AB$51,Spielerliste!$A$1:$C$480,2)) -> Knobel Herlinde | AD46: =IF($AB$6:$AB$51="","",VLOOKUP($AB$6:$AB$51,Spielerliste!$A$1:$C$480,3)) -> Rankweil | AE46: 77 | AF46: 27 | AG46: 104 | AH46: 4 | AI46: 65 | AJ46: 14 | AK46: 79 | AL46: 9 | AM46: 142 | AN46: 41 | AO46: 183 | AP46: 13
A47: 42 | B47: 472 | C47: Klinger Inge | D47: Partenen | E47: 81 | F47: 34 | G47: 115 | H47: 2 | I47: 56 | J47: 33 | K47: 89 | L47: 4 | M47: 137 | N47: 67 | O47: 204 | P47: 6 | AA47: 42 | AB47: 413 | AC47: =IF($AB$6:$AB$51="","",VLOOKUP($AB$6:$AB$51,Spielerliste!$A$1:$C$480,2)) -> Müller Hildegard | AD47: =IF($AB$6:$AB$51="","",VLOOKUP($AB$6:$AB$51,Spielerliste!$A$1:$C$480,3)) -> Nofels | AE47: 92 | AF47: 26 | AG47: 118 | AH47: 4 | AI47: 94 | AJ47: 35 | AK47: 129 | AL47: 3 | AM47: 186 | AN47: 61 | AO47: 247 | AP47: 7
A48: 43 | B48: 354 | C48: Scherz Christine | D48: Götzis | E48: 76 | F48: 27 | G48: 103 | H48: 5 | I48: 76 | J48: 25 | K48: 101 | L48: 6 | M48: 152 | N48: 52 | O48: 204 | P48: 11 | AA48: 43 | AB48: 412 | AC48: =IF($AB$6:$AB$51="","",VLOOKUP($AB$6:$AB$51,Spielerliste!$A$1:$C$480,2)) -> Mair Wilma | AD48: =IF($AB$6:$AB$51="","",VLOOKUP($AB$6:$AB$51,Spielerliste!$A$1:$C$480,3)) -> Nofels | AE48: 74 | AF48: 25 | AG48: 99 | AH48: 7 | AI48: 94 | AJ48: 25 | AK48: 119 | AL48: 6 | AM48: 168 | AN48: 50 | AO48: 218 | AP48: 13
A49: 44 | B49: 429 | C49: Nedok Manuela | D49: Rheindelta | E49: 82 | F49: 24 | G49: 106 | H49: 5 | I49: 70 | J49: 26 | K49: 96 | L49: 7 | M49: 152 | N49: 50 | O49: 202 | P49: 12 | AA49: 44 | AB49: 388 | AC49: =IF($AB$6:$AB$51="","",VLOOKUP($AB$6:$AB$51,Spielerliste!$A$1:$C$480,2)) -> Isele Heidi | AD49: =IF($AB$6:$AB$51="","",VLOOKUP($AB$6:$AB$51,Spielerliste!$A$1:$C$480,3)) -> Lustenau | AE49: 57 | AF49: 23 | AG49: 80 | AH49: 7 | AI49: 62 | AJ49: 25 | AK49: 87 | AL49: 10 | AM49: 119 | AN49: 48 | AO49: 167 | AP49: 17
A50: 45 | B50: 475 | C50: Stemer Marianne | D50: Partenen | E50: 67 | F50: 26 | G50: 93 | H50: 5 | I50: 70 | J50: 34 | K50: 104 | L50: 4 | M50: 137 | N50: 60 | O50: 197 | P50: 9 | AA50: 45 | AB50: 393 | AC50: =IF($AB$6:$AB$51="","",VLOOKUP($AB$6:$AB$51,Spielerliste!$A$1:$C$480,2)) -> Stipetic Marija | AD50: =IF($AB$6:$AB$51="","",VLOOKUP($AB$6:$AB$51,Spielerliste!$A$1:$C$480,3)) -> Lustenau | AE50: 81 | AF50: =AG50-AE50 -> 30 | AG50: 111 | AH50: 5 | AI50: 91 | AJ50: =AK50-AI50 -> 34 | AK50: 125 | AL50: 2 | AM50: =AE50+AI50 -> 172 | AN50: =AF50+AJ50 -> 64 | AO50: =AG50+AK50 -> 236 | AP50: =AH50+AL50 -> 7
A51: 46 | B51: 403 | C51: Stracker Anna | D51: Mäder | E51: 81 | F51: 18 | G51: 99 | H51: 9 | I51: 80 | J51: 18 | K51: 98 | L51: 7 | M51: 161 | N51: 36 | O51: 197 | P51: 16 | AA51: 46 | AB51: 363 | AC51: =IF($AB$6:$AB$67="","",VLOOKUP($AB$6:$AB$67,Spielerliste!$A$1:$C$480,2)) -> Woinesich Eva | AD51: =IF($AB$6:$AB$67="","",VLOOKUP($AB$6:$AB$67,Spielerliste!$A$1:$C$480,3)) -> Hard | AE51: 70 | AF51: 34 | AG51: 104 | AH51: 3 | AI51: 92 | AJ51: 32 | AK51: 124 | AL51: 2 | AM51: 162 | AN51: 66 | AO51: 228 | AP51: 5
A52: 47 | B52: 389 | C52: Loidl Josefine | D52: Lustenau | E52: 81 | F52: 17 | G52: 98 | H52: 10 | I52: 78 | J52: 17 | K52: 95 | L52: 9 | M52: 159 | N52: 34 | O52: 193 | P52: 19 | AA52: 47 | AB52: 451 | AC52: =IF($AB$6:$AB$67="","",VLOOKUP($AB$6:$AB$67,Spielerliste!$A$1:$C$480,2)) -> Gutmann Lore | AD52: =IF($AB$6:$AB$67="","",VLOOKUP($AB$6:$AB$67,Spielerliste!$A$1:$C$480,3)) -> Wolfurt | AE52: 76 | AF52: =AG52-AE52 -> 43 | AG52: 119 | AH52: 1 | AI52: 87 | AJ52: =AK52-AI52 -> 35 | AK52: 122 | AL52: 2 | AM52: =AE52+AI52 -> 163 | AN52: =AF52+AJ52 -> 78 | AO52: =AG52+AK52 -> 241 | AP52: =AH52+AL52 -> 3
A53: 48 | B53: 322 | C53: Leimgruber Roswitha | D53: Bürs | E53: 84 | F53: 24 | G53: 108 | H53: 4 | I53: 60 | J53: 17 | K53: 77 | L53: 6 | M53: 144 | N53: 41 | O53: 185 | P53: 10 | AA53: 48 | AB53: 452 | AC53: =IF($AB$6:$AB$67="","",VLOOKUP($AB$6:$AB$67,Spielerliste!$A$1:$C$480,2)) -> Lick Brunhilde | AD53: =IF($AB$6:$AB$67="","",VLOOKUP($AB$6:$AB$67,Spielerliste!$A$1:$C$480,3)) -> Wolfurt | AE53: 63 | AF53: 45 | AG53: 108 | AH53: 1 | AI53: 78 | AJ53: 27 | AK53: 105 | AL53: 6 | AM53: 141 | AN53: 72 | AO53: 213 | AP53: 7
A54: 49 | B54: 421 | C54: Knobel Herlinde | D54: Rankweil | E54: 77 | F54: 27 | G54: 104 | H54: 4 | I54: 65 | J54: 14 | K54: 79 | L54: 9 | M54: 142 | N54: 41 | O54: 183 | P54: 13 | AA54: 49 | AB54: 429 | AC54: =IF($AB$6:$AB$67="","",VLOOKUP($AB$6:$AB$67,Spielerliste!$A$1:$C$480,2)) -> Nedok Manuela | AD54: =IF($AB$6:$AB$67="","",VLOOKUP($AB$6:$AB$67,Spielerliste!$A$1:$C$480,3)) -> Rheindelta | AE54: 82 | AF54: 24 | AG54: 106 | AH54: 5 | AI54: 70 | AJ54: 26 | AK54: 96 | AL54: 7 | AM54: 152 | AN54: 50 | AO54: 202 | AP54: 12
A55: 50 | B55: 430 | C55: Schobel Monika | D55: Rheindelta | E55: 72 | F55: 18 | G55: 90 | H55: 6 | I55: 75 | J55: 17 | K55: 92 | L55: 6 | M55: 147 | N55: 35 | O55: 182 | P55: 12 | AA55: 50 | AB55: 442 | AC55: =IF($AB$6:$AB$67="","",VLOOKUP($AB$6:$AB$67,Spielerliste!$A$1:$C$480,2)) -> Sinko Lotte | AD55: =IF($AB$6:$AB$67="","",VLOOKUP($AB$6:$AB$67,Spielerliste!$A$1:$C$480,3)) -> Vandans | AE55: 82 | AF55: =AG55-AE55 -> 33 | AG55: 115 | AH55: 1 | AI55: 70 | AJ55: =AK55-AI55 -> 26 | AK55: 96 | AL55: 7 | AM55: =AE55+AI55 -> 152 | AN55: =AF55+AJ55 -> 59 | AO55: =AG55+AK55 -> 211 | AP55: =AH55+AL55 -> 8
A56: 51 | B56: 323 | C56: Pfeifer Gertrud | D56: Bürs | E56: 57 | F56: 20 | G56: 77 | H56: 7 | I56: 68 | J56: 32 | K56: 100 | L56: 6 | M56: 125 | N56: 52 | O56: 177 | P56: 13 | AA56: 51 | AB56: 353 | AC56: =IF($AB$6:$AB$67="","",VLOOKUP($AB$6:$AB$67,Spielerliste!$A$1:$C$480,2)) -> Schatzmann Doris | AD56: =IF($AB$6:$AB$67="","",VLOOKUP($AB$6:$AB$67,Spielerliste!$A$1:$C$480,3)) -> Götzis | AE56: 74 | AF56: 31 | AG56: 105 | AH56: 4 | AI56: 75 | AJ56: 27 | AK56: 102 | AL56: 5 | AM56: 149 | AN56: 58 | AO56: 207 | AP56: 9
A57: 52 | B57: 325 | C57: Stadlmayr Yvonne | D57: Bürs | E57: 49 | F57: 44 | G57: 93 | H57: 3 | I57: 65 | J57: 16 | K57: 81 | L57: 8 | M57: 114 | N57: 60 | O57: 174 | P57: 11 | AA57: 52 | AB57: 314 | AC57: =IF($AB$6:$AB$67="","",VLOOKUP($AB$6:$AB$67,Spielerliste!$A$1:$C$480,2)) -> Schneider Steffi | AD57: =IF($AB$6:$AB$67="","",VLOOKUP($AB$6:$AB$67,Spielerliste!$A$1:$C$480,3)) -> Bregenz | AE57: 86 | AF57: 36 | AG57: 122 | AH57: 1 | AI57: 82 | AJ57: 34 | AK57: 116 | AL57: 2 | AM57: 168 | AN57: 70 | AO57: 238 | AP57: 3
A58: 53 | B58: 426 | C58: Bernard Hilde | D58: Rheindelta | E58: 51 | F58: 19 | G58: 70 | H58: 9 | I58: 67 | J58: 30 | K58: 97 | L58: 6 | M58: 118 | N58: 49 | O58: 167 | P58: 15 | AA58: 53 | AB58: 331 | AC58: =IF($AB$6:$AB$67="","",VLOOKUP($AB$6:$AB$67,Spielerliste!$A$1:$C$480,2)) -> Kofler Christine | AD58: =IF($AB$6:$AB$67="","",VLOOKUP($AB$6:$AB$67,Spielerliste!$A$1:$C$480,3)) -> Dornbirn | AE58: 88 | AF58: 45 | AG58: 133 | AH58: 0 | AI58: 83 | AJ58: 33 | AK58: 116 | AL58: 3 | AM58: 171 | AN58: 78 | AO58: 249 | AP58: 3
A59: 54 | B59: 388 | C59: Isele Heidi | D59: Lustenau | E59: 57 | F59: 23 | G59: 80 | H59: 7 | I59: 62 | J59: 25 | K59: 87 | L59: 10 | M59: 119 | N59: 48 | O59: 167 | P59: 17 | AA59: 54 | AB59: 332 | AC59: =IF($AB$6:$AB$67="","",VLOOKUP($AB$6:$AB$67,Spielerliste!$A$1:$C$480,2)) -> Kuncic Eleonora | AD59: =IF($AB$6:$AB$67="","",VLOOKUP($AB$6:$AB$67,Spielerliste!$A$1:$C$480,3)) -> Dornbirn | AE59: 81 | AF59: 15 | AG59: 96 | AH59: 9 | AI59: 76 | AJ59: 35 | AK59: 111 | AL59: 4 | AM59: 157 | AN59: 50 | AO59: 207 | AP59: 13
A60: 55 | B60: 471 | C60: Bitschnau Gerti | D60: Partenen | E60: 49 | F60: 9 | G60: 58 | H60: 12 | I60: 75 | J60: 13 | K60: 88 | L60: 9 | M60: 124 | N60: 22 | O60: 146 | P60: 21 | AA60: 55 | AB60: 333 | AC60: =IF($AB$6:$AB$67="","",VLOOKUP($AB$6:$AB$67,Spielerliste!$A$1:$C$480,2)) -> Mayr Ernestine | AD60: =IF($AB$6:$AB$67="","",VLOOKUP($AB$6:$AB$67,Spielerliste!$A$1:$C$480,3)) -> Dornbirn | AE60: 80 | AF60: 33 | AG60: 113 | AH60: 4 | AI60: 73 | AJ60: 35 | AK60: 108 | AL60: 3 | AM60: 153 | AN60: 68 | AO60: 221 | AP60: 7
AA61: 56 | AB61: 334 | AC61: =IF($AB$6:$AB$67="","",VLOOKUP($AB$6:$AB$67,Spielerliste!$A$1:$C$480,2)) -> Oblak Heidi | AD61: =IF($AB$6:$AB$67="","",VLOOKUP($AB$6:$AB$67,Spielerliste!$A$1:$C$480,3)) -> Dornbirn | AE61: 72 | AF61: 34 | AG61: 106 | AH61: 4 | AI61: 84 | AJ61: 34 | AK61: 118 | AL61: 2 | AM61: 156 | AN61: 68 | AO61: 224 | AP61: 6
AA62: 57 | AB62: 337 | AC62: =IF($AB$6:$AB$67="","",VLOOKUP($AB$6:$AB$67,Spielerliste!$A$1:$C$480,2)) -> Seidler Elisabeth | AD62: =IF($AB$6:$AB$67="","",VLOOKUP($AB$6:$AB$67,Spielerliste!$A$1:$C$480,3)) -> Dornbirn | AE62: 78 | AF62: 33 | AG62: 111 | AH62: 2 | AI62: 69 | AJ62: 34 | AK62: 103 | AL62: 6 | AM62: 147 | AN62: 67 | AO62: 214 | AP62: 8
AA63: 58 | AB63: 373 | AC63: =IF($AB$6:$AB$67="","",VLOOKUP($AB$6:$AB$67,Spielerliste!$A$1:$C$480,2)) -> Hämmerle Sabine | AD63: =IF($AB$6:$AB$67="","",VLOOKUP($AB$6:$AB$67,Spielerliste!$A$1:$C$480,3)) -> Koblach | AE63: 84 | AF63: 53 | AG63: 137 | AH63: 1 | AI63: 75 | AJ63: 35 | AK63: 110 | AL63: 4 | AM63: 159 | AN63: 88 | AO63: 247 | AP63: 5

Sheet EM 60 Wurf Herren 1
A1: 60 Wurf - Einzelmeisterschaft 2019/20 | AA1: Einzelmeisterschaft 2019/20
A2: Ergebnisliste - HERREN 1 | AA2: Ergebnisliste - HERREN 1
A4: Pl. | C4: Name | D4: Ortsgr. | E4: 1. Durchgang | I4: 2. Durchgang | M4: Volle | N4: Abr. | O4: Ges. | P4: FW | AC4: Name | AD4: Ortsgr. | AE4: 1. Durchgang | AI4: 2. Durchgang | AM4: Volle | AN4: Abr. | AO4: Ges. | AP4: FW
E5: V | F5: A | G5: G | H5: FW | I5: V | J5: A | K5: G | L5: FW | AE5: V | AF5: A | AG5: G | AH5: FW | AI5: V | AJ5: A | AK5: G | AL5: FW
A6: 1 | B6: 136 | C6: Grassmugg Josef | D6: Koblach | E6: 86 | F6: 53 | G6: 139 | H6: 0 | I6: 95 | J6: 51 | K6: 146 | L6: 0 | M6: 181 | N6: 104 | O6: 285 | P6: 0 | AA6: 1 | AB6: 184 | AC6: =IF($AB$6:$AB$81="","",VLOOKUP($AB$6:$AB$81,Spielerliste!$A$1:$C$480,2)) -> Heinle Otmar | AD6: =IF($AB$6:$AB$81="","",VLOOKUP($AB$6:$AB$81,Spielerliste!$A$1:$C$480,3)) -> Mäder | AE6: 54 | AF6: =AG6-AE6 -> 35 | AG6: 89 | AH6: 8 | AI6: 67 | AJ6: =AK6-AI6 -> 25 | AK6: 92 | AL6: 6 | AM6: =AE6+AI6 -> 121 | AN6: =AF6+AJ6 -> 60 | AO6: =AG6+AK6 -> 181 | AP6: =AH6+AL6 -> 14
A7: 2 | B7: 111 | C7: Cuk Jure | D7: Hohenems | E7: 95 | F7: 53 | G7: 148 | H7: 0 | I7: 87 | J7: 36 | K7: 123 | L7: 3 | M7: 182 | N7: 89 | O7: 271 | P7: 3 | AA7: 2 | AB7: 188 | AC7: =IF($AB$6:$AB$81="","",VLOOKUP($AB$6:$AB$81,Spielerliste!$A$1:$C$480,2)) -> Riedmann Wolfgang | AD7: =IF($AB$6:$AB$81="","",VLOOKUP($AB$6:$AB$81,Spielerliste!$A$1:$C$480,3)) -> Mäder | AE7: 71 | AF7: 26 | AG7: 97 | AH7: 6 | AI7: 78 | AJ7: 52 | AK7: 130 | AL7: 0 | AM7: 149 | AN7: 78 | AO7: 227 | AP7: 6
A8: 3 | B8: 174 | C8: Riedmann Werner | D8: Lustenau | E8: 91 | F8: 43 | G8: 134 | H8: 4 | I8: 91 | J8: 45 | K8: 136 | L8: 0 | M8: 182 | N8: 88 | O8: 270 | P8: 4 | AA8: 3 | AB8: 85 | AC8: =IF($AB$6:$AB$81="","",VLOOKUP($AB$6:$AB$81,Spielerliste!$A$1:$C$480,2)) -> Hyden Walter | AD8: =IF($AB$6:$AB$81="","",VLOOKUP($AB$6:$AB$81,Spielerliste!$A$1:$C$480,3)) -> Götzis | AE8: 87 | AF8: 27 | AG8: 114 | AH8: 4 | AI8: 87 | AJ8: 41 | AK8: 128 | AL8: 1 | AM8: 174 | AN8: 68 | AO8: 242 | AP8: 5
A9: 4 | B9: 146 | C9: Nikolic Milosav | D9: Koblach | E9: 91 | F9: 44 | G9: 135 | H9: 1 | I9: 86 | J9: 44 | K9: 130 | L9: 2 | M9: 177 | N9: 88 | O9: 265 | P9: 3 | AA9: 4 | AB9: 90 | AC9: =IF($AB$6:$AB$81="","",VLOOKUP($AB$6:$AB$81,Spielerliste!$A$1:$C$480,2)) -> Scherz Ernst | AD9: =IF($AB$6:$AB$81="","",VLOOKUP($AB$6:$AB$81,Spielerliste!$A$1:$C$480,3)) -> Götzis | AE9: 86 | AF9: 25 | AG9: 111 | AH9: 7 | AI9: 77 | AJ9: 35 | AK9: 112 | AL9: 5 | AM9: 163 | AN9: 60 | AO9: 223 | AP9: 12
A10: 5 | B10: 46 | C10: Kessler Günter | D10: Dornbirn | E10: 87 | F10: 36 | G10: 123 | H10: 2 | I10: 87 | J10: 51 | K10: 138 | L10: 2 | M10: 174 | N10: 87 | O10: 261 | P10: 4 | AA10: 5 | AB10: 292 | AC10: =IF($AB$6:$AB$81="","",VLOOKUP($AB$6:$AB$81,Spielerliste!$A$1:$C$480,2)) -> Munz Karl | AD10: =IF($AB$6:$AB$81="","",VLOOKUP($AB$6:$AB$81,Spielerliste!$A$1:$C$480,3)) -> Partenen | AE10: 70 | AF10: 17 | AG10: 87 | AH10: 6 | AI10: 79 | AJ10: 25 | AK10: 104 | AL10: 5 | AM10: 149 | AN10: 42 | AO10: 191 | AP10: 11
A11: 6 | B11: 87 | C11: Pürstl Richard | D11: Götzis | E11: 94 | F11: 42 | G11: 136 | H11: 1 | I11: 87 | J11: 35 | K11: 122 | L11: 3 | M11: 181 | N11: 77 | O11: 258 | P11: 4 | AA11: 6 | AB11: 294 | AC11: =IF($AB$6:$AB$81="","",VLOOKUP($AB$6:$AB$81,Spielerliste!$A$1:$C$480,2)) -> Werle Karl | AD11: =IF($AB$6:$AB$81="","",VLOOKUP($AB$6:$AB$81,Spielerliste!$A$1:$C$480,3)) -> Partenen | AE11: 83 | AF11: 27 | AG11: 110 | AH11: 4 | AI11: 79 | AJ11: 26 | AK11: 105 | AL11: 5 | AM11: 162 | AN11: 53 | AO11: 215 | AP11: 9
A12: 7 | B12: 43 | C12: Gradwohl Josef | D12: Dornbirn | E12: 86 | F12: 34 | G12: 120 | H12: 2 | I12: 101 | J12: 36 | K12: 137 | L12: 1 | M12: 187 | N12: 70 | O12: 257 | P12: 3 | AA12: 7 | AB12: 111 | AC12: =IF($AB$6:$AB$81="","",VLOOKUP($AB$6:$AB$81,Spielerliste!$A$1:$C$480,2)) -> Cuk Jure | AD12: =IF($AB$6:$AB$81="","",VLOOKUP($AB$6:$AB$81,Spielerliste!$A$1:$C$480,3)) -> Hohenems | AE12: 95 | AF12: 53 | AG12: 148 | AH12: 0 | AI12: 87 | AJ12: 36 | AK12: 123 | AL12: 3 | AM12: 182 | AN12: 89 | AO12: 271 | AP12: 3
A13: 8 | B13: 220 | C13: Schirgi Wolfgang | D13: Rankweil | E13: 80 | F13: 61 | G13: 141 | H13: 2 | I13: 81 | J13: 34 | K13: 115 | L13: 2 | M13: 161 | N13: 95 | O13: 256 | P13: 4 | AA13: 8 | AB13: 134 | AC13: =IF($AB$6:$AB$81="","",VLOOKUP($AB$6:$AB$81,Spielerliste!$A$1:$C$480,2)) -> Fessler Gerd | AD13: =IF($AB$6:$AB$81="","",VLOOKUP($AB$6:$AB$81,Spielerliste!$A$1:$C$480,3)) -> Koblach | AE13: 92 | AF13: 35 | AG13: 127 | AH13: 1 | AI13: 93 | AJ13: 35 | AK13: 128 | AL13: 0 | AM13: 185 | AN13: 70 | AO13: 255 | AP13: 1
A14: 9 | B14: 199 | C14: Paulitsch Gottfried | D14: Nofels | E14: 87 | F14: 33 | G14: 120 | H14: 3 | I14: 86 | J14: 50 | K14: 136 | L14: 0 | M14: 173 | N14: 83 | O14: 256 | P14: 3 | AA14: 9 | AB14: 136 | AC14: =IF($AB$6:$AB$81="","",VLOOKUP($AB$6:$AB$81,Spielerliste!$A$1:$C$480,2)) -> Grassmugg Josef | AD14: =IF($AB$6:$AB$81="","",VLOOKUP($AB$6:$AB$81,Spielerliste!$A$1:$C$480,3)) -> Koblach | AE14: 86 | AF14: 53 | AG14: 139 | AH14: 0 | AI14: 95 | AJ14: 51 | AK14: 146 | AL14: 0 | AM14: 181 | AN14: 104 | AO14: 285 | AP14: 0
A15: 10 | B15: 134 | C15: Fessler Gerd | D15: Koblach | E15: 92 | F15: 35 | G15: 127 | H15: 1 | I15: 93 | J15: 35 | K15: 128 | L15: 0 | M15: 185 | N15: 70 | O15: 255 | P15: 1 | AA15: 10 | AB15: 252 | AC15: =IF($AB$6:$AB$81="","",VLOOKUP($AB$6:$AB$81,Spielerliste!$A$1:$C$480,2)) -> Maier Wilfried | AD15: =IF($AB$6:$AB$81="","",VLOOKUP($AB$6:$AB$81,Spielerliste!$A$1:$C$480,3)) -> Vandans | AE15: 77 | AF15: 27 | AG15: 104 | AH15: 4 | AI15: 88 | AJ15: 50 | AK15: 138 | AL15: 0 | AM15: 165 | AN15: 77 | AO15: 242 | AP15: 4
A16: 11 | B16: 82 | C16: Einwaller Harald | D16: Götzis | E16: 82 | F16: 41 | G16: 123 | H16: 0 | I16: 89 | J16: 42 | K16: 131 | L16: 0 | M16: 171 | N16: 83 | O16: 254 | P16: 0 | AA16: 11 | AB16: 38 | AC16: =IF($AB$6:$AB$81="","",VLOOKUP($AB$6:$AB$81,Spielerliste!$A$1:$C$480,2)) -> Berger Reinhard | AD16: =IF($AB$6:$AB$81="","",VLOOKUP($AB$6:$AB$81,Spielerliste!$A$1:$C$480,3)) -> Dornbirn | AE16: 85 | AF16: 26 | AG16: 111 | AH16: 3 | AI16: 84 | AJ16: 52 | AK16: 136 | AL16: 1 | AM16: 169 | AN16: 78 | AO16: 247 | AP16: 4
A17: 12 | B17: 200 | C17: Peterlunger Valerian | D17: Nofels | E17: 81 | F17: 44 | G17: 125 | H17: 1 | I17: 84 | J17: 43 | K17: 127 | L17: 2 | M17: 165 | N17: 87 | O17: 252 | P17: 3 | AA17: 12 | AB17: 256 | AC17: =IF($AB$6:$AB$81="","",VLOOKUP($AB$6:$AB$81,Spielerliste!$A$1:$C$480,2)) -> Simenowskyj Stefan | AD17: =IF($AB$6:$AB$81="","",VLOOKUP($AB$6:$AB$81,Spielerliste!$A$1:$C$480,3)) -> Vandans | AE17: 67 | AF17: 34 | AG17: 101 | AH17: 4 | AI17: 75 | AJ17: 42 | AK17: 117 | AL17: 3 | AM17: 142 | AN17: 76 | AO17: 218 | AP17: 7
A18: 13 | B18: 47 | C18: Kezic Blago | D18: Dornbirn | E18: 92 | F18: 35 | G18: 127 | H18: 2 | I18: 82 | J18: 42 | K18: 124 | L18: 2 | M18: 174 | N18: 77 | O18: 251 | P18: 4 | AA18: 13 | AB18: 258 | AC18: =IF($AB$6:$AB$81="","",VLOOKUP($AB$6:$AB$81,Spielerliste!$A$1:$C$480,2)) -> Ströhle Helmut | AD18: =IF($AB$6:$AB$81="","",VLOOKUP($AB$6:$AB$81,Spielerliste!$A$1:$C$480,3)) -> Vandans | AE18: 88 | AF18: 26 | AG18: 114 | AH18: 3 | AI18: 79 | AJ18: 27 | AK18: 106 | AL18: 1 | AM18: 167 | AN18: 53 | AO18: 220 | AP18: 4
A19: 14 | B19: 198 | C19: Mair Otmar | D19: Nofels | E19: 87 | F19: 34 | G19: 121 | H19: 2 | I19: 94 | J19: 35 | K19: 129 | L19: 2 | M19: 181 | N19: 69 | O19: 250 | P19: 4 | AA19: 14 | AB19: 259 | AC19: =IF($AB$6:$AB$81="","",VLOOKUP($AB$6:$AB$81,Spielerliste!$A$1:$C$480,2)) -> Trummer Heinz | AD19: =IF($AB$6:$AB$81="","",VLOOKUP($AB$6:$AB$81,Spielerliste!$A$1:$C$480,3)) -> Vandans | AE19: 71 | AF19: 35 | AG19: 106 | AH19: 5 | AI19: 75 | AJ19: 25 | AK19: 100 | AL19: 7 | AM19: 146 | AN19: 60 | AO19: 206 | AP19: 12
A20: 15 | B20: 38 | C20: Berger Reinhard | D20: Dornbirn | E20: 85 | F20: 26 | G20: 111 | H20: 3 | I20: 84 | J20: 52 | K20: 136 | L20: 1 | M20: 169 | N20: 78 | O20: 247 | P20: 4 | AA20: 15 | AB20: 261 | AC20: =IF($AB$6:$AB$81="","",VLOOKUP($AB$6:$AB$81,Spielerliste!$A$1:$C$480,2)) -> Wachter Robert | AD20: =IF($AB$6:$AB$81="","",VLOOKUP($AB$6:$AB$81,Spielerliste!$A$1:$C$480,3)) -> Vandans | AE20: 100 | AF20: 25 | AG20: 125 | AH20: 5 | AI20: 63 | AJ20: 26 | AK20: 89 | AL20: 5 | AM20: 163 | AN20: 51 | AO20: 214 | AP20: 10
A21: 16 | B21: 54 | C21: Vauce Gottfried | D21: Dornbirn | E21: 99 | F21: 34 | G21: 133 | H21: 2 | I21: 79 | J21: 35 | K21: 114 | L21: 2 | M21: 178 | N21: 69 | O21: 247 | P21: 4 | AA21: 16 | AB21: 282 | AC21: =IF($AB$6:$AB$81="","",VLOOKUP($AB$6:$AB$81,Spielerliste!$A$1:$C$480,2)) -> Marinz Günther | AD21: =IF($AB$6:$AB$81="","",VLOOKUP($AB$6:$AB$81,Spielerliste!$A$1:$C$480,3)) -> ESV Br-Wo | AE21: 87 | AF21: 34 | AG21: 121 | AH21: 4 | AI21: 83 | AJ21: 42 | AK21: 125 | AL21: 4 | AM21: 170 | AN21: 76 | AO21: 246 | AP21: 8
A22: 17 | B22: 151 | C22: Tusch Norbert | D22: Koblach | E22: 81 | F22: 34 | G22: 115 | H22: 3 | I22: 82 | J22: 49 | K22: 131 | L22: 1 | M22: 163 | N22: 83 | O22: 246 | P22: 4 | AA22: 17 | AB22: 283 | AC22: =IF($AB$6:$AB$81="","",VLOOKUP($AB$6:$AB$81,Spielerliste!$A$1:$C$480,2)) -> Riemer Herbert | AD22: =IF($AB$6:$AB$81="","",VLOOKUP($AB$6:$AB$81,Spielerliste!$A$1:$C$480,3)) -> ESV Br-Wo | AE22: 74 | AF22: 17 | AG22: 91 | AH22: 6 | AI22: 67 | AJ22: 31 | AK22: 98 | AL22: 4 | AM22: 141 | AN22: 48 | AO22: 189 | AP22: 10
A23: 18 | B23: 282 | C23: Marinz Günther | D23: ESV Br-Wo | E23: 87 | F23: 34 | G23: 121 | H23: 4 | I23: 83 | J23: 42 | K23: 125 | L23: 4 | M23: 170 | N23: 76 | O23: 246 | P23: 8 | AA23: 18 | AB23: 192 | AC23: =IF($AB$6:$AB$81="","",VLOOKUP($AB$6:$AB$81,Spielerliste!$A$1:$C$480,2)) -> Sandholzer Alfred | AD23: =IF($AB$6:$AB$81="","",VLOOKUP($AB$6:$AB$81,Spielerliste!$A$1:$C$480,3)) -> Mäder | AE23: 74 | AF23: 51 | AG23: 125 | AH23: 0 | AI23: 76 | AJ23: 35 | AK23: 111 | AL23: 2 | AM23: 150 | AN23: 86 | AO23: 236 | AP23: 2
A24: 19 | B24: 252 | C24: Maier Wilfried | D24: Vandans | E24: 77 | F24: 27 | G24: 104 | H24: 4 | I24: 88 | J24: 50 | K24: 138 | L24: 0 | M24: 165 | N24: 77 | O24: 242 | P24: 4 | AA24: 19 | AB24: 189 | AC24: =IF($AB$6:$AB$81="","",VLOOKUP($AB$6:$AB$81,Spielerliste!$A$1:$C$480,2)) -> Riedmann Markus | AD24: =IF($AB$6:$AB$81="","",VLOOKUP($AB$6:$AB$81,Spielerliste!$A$1:$C$480,3)) -> Mäder | AE24: 87 | AF24: 26 | AG24: 113 | AH24: 5 | AI24: 84 | AJ24: 27 | AK24: 111 | AL24: 4 | AM24: 171 | AN24: 53 | AO24: 224 | AP24: 9
A25: 20 | B25: 11 | C25: Berkmann Josef | D25: Bregenz | E25: 77 | F25: 43 | G25: 120 | H25: 1 | I25: 89 | J25: 33 | K25: 122 | L25: 2 | M25: 166 | N25: 76 | O25: 242 | P25: 3 | AA25: 20 | AB25: 185 | AC25: =IF($AB$6:$AB$81="","",VLOOKUP($AB$6:$AB$81,Spielerliste!$A$1:$C$480,2)) -> Hinteregger Erwin | AD25: =IF($AB$6:$AB$81="","",VLOOKUP($AB$6:$AB$81,Spielerliste!$A$1:$C$480,3)) -> Mäder | AE25: 70 | AF25: 26 | AG25: 96 | AH25: 4 | AI25: 83 | AJ25: 24 | AK25: 107 | AL25: 4 | AM25: 153 | AN25: 50 | AO25: 203 | AP25: 8
A26: 21 | B26: 85 | C26: Hyden Walter | D26: Götzis | E26: 87 | F26: 27 | G26: 114 | H26: 4 | I26: 87 | J26: 41 | K26: 128 | L26: 1 | M26: 174 | N26: 68 | O26: 242 | P26: 5 | AA26: 21 | AB26: 182 | AC26: =IF($AB$6:$AB$81="","",VLOOKUP($AB$6:$AB$81,Spielerliste!$A$1:$C$480,2)) -> Ender Heinrich | AD26: =IF($AB$6:$AB$81="","",VLOOKUP($AB$6:$AB$81,Spielerliste!$A$1:$C$480,3)) -> Mäder | AE26: 75 | AF26: 39 | AG26: 114 | AH26: 4 | AI26: 84 | AJ26: 25 | AK26: 109 | AL26: 5 | AM26: 159 | AN26: 64 | AO26: 223 | AP26: 9
A27: 22 | B27: 273 | C27: Wiesflecker Edi | D27: Wolfurt | E27: 81 | F27: 45 | G27: 126 | H27: 0 | I27: 86 | J27: 27 | K27: 113 | L27: 4 | M27: 167 | N27: 72 | O27: 239 | P27: 4 | AA27: 22 | AB27: 30 | AC27: =IF($AB$6:$AB$81="","",VLOOKUP($AB$6:$AB$81,Spielerliste!$A$1:$C$480,2)) -> Virag Peter | AD27: =IF($AB$6:$AB$81="","",VLOOKUP($AB$6:$AB$81,Spielerliste!$A$1:$C$480,3)) -> Bürs | AE27: 72 | AF27: =AG27-AE27 -> 36 | AG27: 108 | AH27: 3 | AI27: 88 | AJ27: =AK27-AI27 -> 34 | AK27: 122 | AL27: 1 | AM27: =AE27+AI27 -> 160 | AN27: =AF27+AJ27 -> 70 | AO27: =AG27+AK27 -> 230 | AP27: =AH27+AL27 -> 4
A28: 23 | B28: 100 | C28: Pfanner Klaus | D28: Hard | E28: 74 | F28: 43 | G28: 117 | H28: 0 | I28: 87 | J28: 34 | K28: 121 | L28: 5 | M28: 161 | N28: 77 | O28: 238 | P28: 5 | AA28: 23 | AB28: 28 | AC28: =IF($AB$6:$AB$81="","",VLOOKUP($AB$6:$AB$81,Spielerliste!$A$1:$C$480,2)) -> Stadlmayr Wolfgang | AD28: =IF($AB$6:$AB$81="","",VLOOKUP($AB$6:$AB$81,Spielerliste!$A$1:$C$480,3)) -> Bürs | AE28: 79 | AF28: 36 | AG28: 115 | AH28: 3 | AI28: 58 | AJ28: 24 | AK28: 82 | AL28: 5 | AM28: 137 | AN28: 60 | AO28: 197 | AP28: 8
A29: 24 | B29: 3 | C29: Battisti Anton | D29: Bludenz | E29: 81 | F29: 44 | G29: 125 | H29: 1 | I29: 77 | J29: 35 | K29: 112 | L29: 2 | M29: 158 | N29: 79 | O29: 237 | P29: 3 | AA29: 24 | AB29: 3 | AC29: =IF($AB$6:$AB$81="","",VLOOKUP($AB$6:$AB$81,Spielerliste!$A$1:$C$480,2)) -> Battisti Anton | AD29: =IF($AB$6:$AB$81="","",VLOOKUP($AB$6:$AB$81,Spielerliste!$A$1:$C$480,3)) -> Bludenz | AE29: 81 | AF29: =AG29-AE29 -> 44 | AG29: 125 | AH29: 1 | AI29: 77 | AJ29: =AK29-AI29 -> 35 | AK29: 112 | AL29: 2 | AM29: =AE29+AI29 -> 158 | AN29: =AF29+AJ29 -> 79 | AO29: =AG29+AK29 -> 237 | AP29: =AH29+AL29 -> 3
A30: 25 | B30: 97 | C30: Di-Meglio Jean-Luc | D30: Hard | E30: 84 | F30: 27 | G30: 111 | H30: 4 | I30: 81 | J30: 45 | K30: 126 | L30: 3 | M30: 165 | N30: 72 | O30: 237 | P30: 7 | AA30: 25 | AB30: 137 | AC30: =IF($AB$6:$AB$81="","",VLOOKUP($AB$6:$AB$81,Spielerliste!$A$1:$C$480,2)) -> Haaser Andreas | AD30: =IF($AB$6:$AB$81="","",VLOOKUP($AB$6:$AB$81,Spielerliste!$A$1:$C$480,3)) -> Koblach | AE30: 79 | AF30: 18 | AG30: 97 | AH30: 5 | AI30: 75 | AJ30: 45 | AK30: 120 | AL30: 1 | AM30: 154 | AN30: 63 | AO30: 217 | AP30: 6
A31: 26 | B31: 192 | C31: Sandholzer Alfred | D31: Mäder | E31: 74 | F31: 51 | G31: 125 | H31: 0 | I31: 76 | J31: 35 | K31: 111 | L31: 2 | M31: 150 | N31: 86 | O31: 236 | P31: 2 | AA31: 26 | AB31: 138 | AC31: =IF($AB$6:$AB$81="","",VLOOKUP($AB$6:$AB$81,Spielerliste!$A$1:$C$480,2)) -> Häusle Norbert | AD31: =IF($AB$6:$AB$81="","",VLOOKUP($AB$6:$AB$81,Spielerliste!$A$1:$C$480,3)) -> Koblach | AE31: 72 | AF31: 27 | AG31: 99 | AH31: 4 | AI31: 77 | AJ31: 23 | AK31: 100 | AL31: 7 | AM31: 149 | AN31: 50 | AO31: 199 | AP31: 11
A32: 27 | B32: 44 | C32: Herceg Niki | D32: Dornbirn | E32: 81 | F32: 23 | G32: 104 | H32: 5 | I32: 86 | J32: 45 | K32: 131 | L32: 1 | M32: 167 | N32: 68 | O32: 235 | P32: 6 | AA32: 27 | AC32: =IF($AB$6:$AB$81="","",VLOOKUP($AB$6:$AB$81,Spielerliste!$A$1:$C$480,2)) ->  | AD32: =IF($AB$6:$AB$81="","",VLOOKUP($AB$6:$AB$81,Spielerliste!$A$1:$C$480,3)) ->  | AF32: 0 | AJ32: 0 | AM32: 0 | AN32: 0 | AO32: 0 | AP32: 0
A33: 28 | B33: 269 | C33: Florineth Bruno | D33: Wolfurt | E33: 80 | F33: 43 | G33: 123 | H33: 3 | I33: 75 | J33: 34 | K33: 109 | L33: 2 | M33: 155 | N33: 77 | O33: 232 | P33: 5 | AA33: 28 | AB33: 46 | AC33: =IF($AB$6:$AB$81="","",VLOOKUP($AB$6:$AB$81,Spielerliste!$A$1:$C$480,2)) -> Kessler Günter | AD33: =IF($AB$6:$AB$81="","",VLOOKUP($AB$6:$AB$81,Spielerliste!$A$1:$C$480,3)) -> Dornbirn | AE33: 87 | AF33: 36 | AG33: 123 | AH33: 2 | AI33: 87 | AJ33: 51 | AK33: 138 | AL33: 2 | AM33: 174 | AN33: 87 | AO33: 261 | AP33: 4
A34: 29 | B34: 30 | C34: Virag Peter | D34: Bürs | E34: 72 | F34: 36 | G34: 108 | H34: 3 | I34: 88 | J34: 34 | K34: 122 | L34: 1 | M34: 160 | N34: 70 | O34: 230 | P34: 4 | AA34: 29 | AB34: 226 | AC34: =IF($AB$6:$AB$81="","",VLOOKUP($AB$6:$AB$81,Spielerliste!$A$1:$C$480,2)) -> Bastiani Karl | AD34: =IF($AB$6:$AB$81="","",VLOOKUP($AB$6:$AB$81,Spielerliste!$A$1:$C$480,3)) -> Rheindelta | AE34: 68 | AF34: 27 | AG34: 95 | AH34: 5 | AI34: 62 | AJ34: 16 | AK34: 78 | AL34: 11 | AM34: 130 | AN34: 43 | AO34: 173 | AP34: 16
A35: 30 | B35: 188 | C35: Riedmann Wolfgang | D35: Mäder | E35: 71 | F35: 26 | G35: 97 | H35: 6 | I35: 78 | J35: 52 | K35: 130 | L35: 0 | M35: 149 | N35: 78 | O35: 227 | P35: 6 | AA35: 30 | AB35: 230 | AC35: =IF($AB$6:$AB$81="","",VLOOKUP($AB$6:$AB$81,Spielerliste!$A$1:$C$480,2)) -> Samide Werner | AD35: =IF($AB$6:$AB$81="","",VLOOKUP($AB$6:$AB$81,Spielerliste!$A$1:$C$480,3)) -> Rheindelta | AE35: 75 | AF35: 26 | AG35: 101 | AH35: 6 | AI35: 70 | AJ35: 41 | AK35: 111 | AL35: 1 | AM35: 145 | AN35: 67 | AO35: 212 | AP35: 7
A36: 31 | B36: 88 | C36: Pürstl Wilfried | D36: Götzis | E36: 86 | F36: 33 | G36: 119 | H36: 3 | I36: 74 | J36: 33 | K36: 107 | L36: 4 | M36: 160 | N36: 66 | O36: 226 | P36: 7 | AA36: 31 | AB36: 232 | AC36: =IF($AB$6:$AB$81="","",VLOOKUP($AB$6:$AB$81,Spielerliste!$A$1:$C$480,2)) -> Schobel Anton | AD36: =IF($AB$6:$AB$81="","",VLOOKUP($AB$6:$AB$81,Spielerliste!$A$1:$C$480,3)) -> Rheindelta | AE36: 78 | AF36: 26 | AG36: 104 | AH36: 7 | AI36: 74 | AJ36: 44 | AK36: 118 | AL36: 1 | AM36: 152 | AN36: 70 | AO36: 222 | AP36: 8
A37: 32 | B37: 45 | C37: Kepe Franz | D37: Dornbirn | E37: 87 | F37: 35 | G37: 122 | H37: 2 | I37: 76 | J37: 27 | K37: 103 | L37: 4 | M37: 163 | N37: 62 | O37: 225 | P37: 6 | AA37: 32 | AB37: 82 | AC37: =IF($AB$6:$AB$81="","",VLOOKUP($AB$6:$AB$81,Spielerliste!$A$1:$C$480,2)) -> Einwaller Harald | AD37: =IF($AB$6:$AB$81="","",VLOOKUP($AB$6:$AB$81,Spielerliste!$A$1:$C$480,3)) -> Götzis | AE37: 82 | AF37: 41 | AG37: 123 | AH37: 0 | AI37: 89 | AJ37: 42 | AK37: 131 | AL37: 0 | AM37: 171 | AN37: 83 | AO37: 254 | AP37: 0
A38: 33 | B38: 189 | C38: Riedmann Markus | D38: Mäder | E38: 87 | F38: 26 | G38: 113 | H38: 5 | I38: 84 | J38: 27 | K38: 111 | L38: 4 | M38: 171 | N38: 53 | O38: 224 | P38: 9 | AA38: 33 | AB38: 97 | AC38: =IF($AB$6:$AB$81="","",VLOOKUP($AB$6:$AB$81,Spielerliste!$A$1:$C$480,2)) -> Di-Meglio Jean-Luc | AD38: =IF($AB$6:$AB$81="","",VLOOKUP($AB$6:$AB$81,Spielerliste!$A$1:$C$480,3)) -> Hard | AE38: 84 | AF38: 27 | AG38: 111 | AH38: 4 | AI38: 81 | AJ38: 45 | AK38: 126 | AL38: 3 | AM38: 165 | AN38: 72 | AO38: 237 | AP38: 7
A39: 34 | B39: 182 | C39: Ender Heinrich | D39: Mäder | E39: 75 | F39: 39 | G39: 114 | H39: 4 | I39: 84 | J39: 25 | K39: 109 | L39: 5 | M39: 159 | N39: 64 | O39: 223 | P39: 9 | AA39: 34 | AB39: 220 | AC39: =IF($AB$6:$AB$81="","",VLOOKUP($AB$6:$AB$81,Spielerliste!$A$1:$C$480,2)) -> Schirgi Wolfgang | AD39: =IF($AB$6:$AB$81="","",VLOOKUP($AB$6:$AB$81,Spielerliste!$A$1:$C$480,3)) -> Rankweil | AE39: 80 | AF39: 61 | AG39: 141 | AH39: 2 | AI39: 81 | AJ39: 34 | AK39: 115 | AL39: 2 | AM39: 161 | AN39: 95 | AO39: 256 | AP39: 4
A40: 35 | B40: 90 | C40: Scherz Ernst | D40: Götzis | E40: 86 | F40: 25 | G40: 111 | H40: 7 | I40: 77 | J40: 35 | K40: 112 | L40: 5 | M40: 163 | N40: 60 | O40: 223 | P40: 12 | AA40: 35 | AB40: 199 | AC40: =IF($AB$6:$AB$81="","",VLOOKUP($AB$6:$AB$81,Spielerliste!$A$1:$C$480,2)) -> Paulitsch Gottfried | AD40: =IF($AB$6:$AB$81="","",VLOOKUP($AB$6:$AB$81,Spielerliste!$A$1:$C$480,3)) -> Nofels | AE40: 87 | AF40: 33 | AG40: 120 | AH40: 3 | AI40: 86 | AJ40: 50 | AK40: 136 | AL40: 0 | AM40: 173 | AN40: 83 | AO40: 256 | AP40: 3
A41: 36 | B41: 232 | C41: Schobel Anton | D41: Rheindelta | E41: 78 | F41: 26 | G41: 104 | H41: 7 | I41: 74 | J41: 44 | K41: 118 | L41: 1 | M41: 152 | N41: 70 | O41: 222 | P41: 8 | AA41: 36 | AB41: 198 | AC41: =IF($AB$6:$AB$81="","",VLOOKUP($AB$6:$AB$81,Spielerliste!$A$1:$C$480,2)) -> Mair Otmar | AD41: =IF($AB$6:$AB$81="","",VLOOKUP($AB$6:$AB$81,Spielerliste!$A$1:$C$480,3)) -> Nofels | AE41: 87 | AF41: 34 | AG41: 121 | AH41: 2 | AI41: 94 | AJ41: 35 | AK41: 129 | AL41: 2 | AM41: 181 | AN41: 69 | AO41: 250 | AP41: 4
A42: 37 | B42: 258 | C42: Ströhle Helmut | D42: Vandans | E42: 88 | F42: 26 | G42: 114 | H42: 3 | I42: 79 | J42: 27 | K42: 106 | L42: 1 | M42: 167 | N42: 53 | O42: 220 | P42: 4 | AA42: 37 | AB42: 200 | AC42: =IF($AB$6:$AB$81="","",VLOOKUP($AB$6:$AB$81,Spielerliste!$A$1:$C$480,2)) -> Peterlunger Valerian | AD42: =IF($AB$6:$AB$81="","",VLOOKUP($AB$6:$AB$81,Spielerliste!$A$1:$C$480,3)) -> Nofels | AE42: 81 | AF42: 44 | AG42: 125 | AH42: 1 | AI42: 84 | AJ42: 43 | AK42: 127 | AL42: 2 | AM42: 165 | AN42: 87 | AO42: 252 | AP42: 3
A43: 38 | B43: 256 | C43: Simenowskyj Stefan | D43: Vandans | E43: 67 | F43: 34 | G43: 101 | H43: 4 | I43: 75 | J43: 42 | K43: 117 | L43: 3 | M43: 142 | N43: 76 | O43: 218 | P43: 7 | AA43: 38 | AB43: 11 | AC43: =IF($AB$6:$AB$81="","",VLOOKUP($AB$6:$AB$81,Spielerliste!$A$1:$C$480,2)) -> Berkmann Josef | AD43: =IF($AB$6:$AB$81="","",VLOOKUP($AB$6:$AB$81,Spielerliste!$A$1:$C$480,3)) -> Bregenz | AE43: 77 | AF43: 43 | AG43: 120 | AH43: 1 | AI43: 89 | AJ43: 33 | AK43: 122 | AL43: 2 | AM43: 166 | AN43: 76 | AO43: 242 | AP43: 3
A44: 39 | B44: 145 | C44: Metzler Johann | D44: Koblach | E44: 80 | F44: 26 | G44: 106 | H44: 5 | I44: 88 | J44: 24 | K44: 112 | L44: 8 | M44: 168 | N44: 50 | O44: 218 | P44: 13 | AA44: 39 | AB44: 174 | AC44: =IF($AB$6:$AB$81="","",VLOOKUP($AB$6:$AB$81,Spielerliste!$A$1:$C$480,2)) -> Riedmann Werner | AD44: =IF($AB$6:$AB$81="","",VLOOKUP($AB$6:$AB$81,Spielerliste!$A$1:$C$480,3)) -> Lustenau | AE44: 91 | AF44: 43 | AG44: 134 | AH44: 4 | AI44: 91 | AJ44: 45 | AK44: 136 | AL44: 0 | AM44: 182 | AN44: 88 | AO44: 270 | AP44: 4
A45: 40 | B45: 137 | C45: Haaser Andreas | D45: Koblach | E45: 79 | F45: 18 | G45: 97 | H45: 5 | I45: 75 | J45: 45 | K45: 120 | L45: 1 | M45: 154 | N45: 63 | O45: 217 | P45: 6 | AA45: 40 | AB45: 103 | AC45: =IF($AB$6:$AB$81="","",VLOOKUP($AB$6:$AB$81,Spielerliste!$A$1:$C$480,2)) -> Woinesich Reinhard | AD45: =IF($AB$6:$AB$81="","",VLOOKUP($AB$6:$AB$81,Spielerliste!$A$1:$C$480,3)) -> Hard | AE45: 84 | AF45: 24 | AG45: 108 | AH45: 5 | AI45: 75 | AJ45: 27 | AK45: 102 | AL45: 4 | AM45: 159 | AN45: 51 | AO45: 210 | AP45: 9
A46: 41 | B46: 294 | C46: Werle Karl | D46: Partenen | E46: 83 | F46: 27 | G46: 110 | H46: 4 | I46: 79 | J46: 26 | K46: 105 | L46: 5 | M46: 162 | N46: 53 | O46: 215 | P46: 9 | AA46: 41 | AB46: 269 | AC46: =IF($AB$6:$AB$81="","",VLOOKUP($AB$6:$AB$81,Spielerliste!$A$1:$C$480,2)) -> Florineth Bruno | AD46: =IF($AB$6:$AB$81="","",VLOOKUP($AB$6:$AB$81,Spielerliste!$A$1:$C$480,3)) -> Wolfurt | AE46: 80 | AF46: 43 | AG46: 123 | AH46: 3 | AI46: 75 | AJ46: 34 | AK46: 109 | AL46: 2 | AM46: 155 | AN46: 77 | AO46: 232 | AP46: 5
A47: 42 | B47: 261 | C47: Wachter Robert | D47: Vandans | E47: 100 | F47: 25 | G47: 125 | H47: 5 | I47: 63 | J47: 26 | K47: 89 | L47: 5 | M47: 163 | N47: 51 | O47: 214 | P47: 10 | AA47: 42 | AB47: 273 | AC47: =IF($AB$6:$AB$81="","",VLOOKUP($AB$6:$AB$81,Spielerliste!$A$1:$C$480,2)) -> Wiesflecker Edi | AD47: =IF($AB$6:$AB$81="","",VLOOKUP($AB$6:$AB$81,Spielerliste!$A$1:$C$480,3)) -> Wolfurt | AE47: 81 | AF47: 45 | AG47: 126 | AH47: 0 | AI47: 86 | AJ47: 27 | AK47: 113 | AL47: 4 | AM47: 167 | AN47: 72 | AO47: 239 | AP47: 4
A48: 43 | B48: 230 | C48: Samide Werner | D48: Rheindelta | E48: 75 | F48: 26 | G48: 101 | H48: 6 | I48: 70 | J48: 41 | K48: 111 | L48: 1 | M48: 145 | N48: 67 | O48: 212 | P48: 7 | AA48: 43 | AB48: 100 | AC48: =IF($AB$6:$AB$81="","",VLOOKUP($AB$6:$AB$81,Spielerliste!$A$1:$C$480,2)) -> Pfanner Klaus | AD48: =IF($AB$6:$AB$81="","",VLOOKUP($AB$6:$AB$81,Spielerliste!$A$1:$C$480,3)) -> Hard | AE48: 74 | AF48: 43 | AG48: 117 | AH48: 0 | AI48: 87 | AJ48: 34 | AK48: 121 | AL48: 5 | AM48: 161 | AN48: 77 | AO48: 238 | AP48: 5
A49: 44 | B49: 103 | C49: Woinesich Reinhard | D49: Hard | E49: 84 | F49: 24 | G49: 108 | H49: 5 | I49: 75 | J49: 27 | K49: 102 | L49: 4 | M49: 159 | N49: 51 | O49: 210 | P49: 9 | AA49: 44 | AB49: 88 | AC49: =IF($AB$6:$AB$81="","",VLOOKUP($AB$6:$AB$81,Spielerliste!$A$1:$C$480,2)) -> Pürstl Wilfried | AD49: =IF($AB$6:$AB$81="","",VLOOKUP($AB$6:$AB$81,Spielerliste!$A$1:$C$480,3)) -> Götzis | AE49: 86 | AF49: 33 | AG49: 119 | AH49: 3 | AI49: 74 | AJ49: 33 | AK49: 107 | AL49: 4 | AM49: 160 | AN49: 66 | AO49: 226 | AP49: 7
A50: 45 | B50: 259 | C50: Trummer Heinz | D50: Vandans | E50: 71 | F50: 35 | G50: 106 | H50: 5 | I50: 75 | J50: 25 | K50: 100 | L50: 7 | M50: 146 | N50: 60 | O50: 206 | P50: 12 | AA50: 45 | AB50: 87 | AC50: =IF($AB$6:$AB$81="","",VLOOKUP($AB$6:$AB$81,Spielerliste!$A$1:$C$480,2)) -> Pürstl Richard | AD50: =IF($AB$6:$AB$81="","",VLOOKUP($AB$6:$AB$81,Spielerliste!$A$1:$C$480,3)) -> Götzis | AE50: 94 | AF50: =AG50-AE50 -> 42 | AG50: 136 | AH50: 1 | AI50: 87 | AJ50: =AK50-AI50 -> 35 | AK50: 122 | AL50: 3 | AM50: =AE50+AI50 -> 181 | AN50: 77 | AO50: 258 | AP50: 4
A51: 46 | B51: 1 | C51: Bertsch Gerhard | D51: Bludenz | E51: 74 | F51: 25 | G51: 99 | H51: 4 | I51: 81 | J51: 26 | K51: 107 | L51: 4 | M51: 155 | N51: 51 | O51: 206 | P51: 8 | AA51: 46 | AB51: 151 | AC51: =IF($AB$6:$AB$81="","",VLOOKUP($AB$6:$AB$81,Spielerliste!$A$1:$C$480,2)) -> Tusch Norbert | AD51: =IF($AB$6:$AB$81="","",VLOOKUP($AB$6:$AB$81,Spielerliste!$A$1:$C$480,3)) -> Koblach | AE51: 81 | AF51: =AG51-AE51 -> 34 | AG51: 115 | AH51: 3 | AI51: 82 | AJ51: =AK51-AI51 -> 49 | AK51: 131 | AL51: 1 | AM51: 163 | AN51: 83 | AO51: 246 | AP51: 4
A52: 47 | B52: 185 | C52: Hinteregger Erwin | D52: Mäder | E52: 70 | F52: 26 | G52: 96 | H52: 4 | I52: 83 | J52: 24 | K52: 107 | L52: 4 | M52: 153 | N52: 50 | O52: 203 | P52: 8 | AA52: 47 | AB52: 146 | AC52: =IF($AB$6:$AB$81="","",VLOOKUP($AB$6:$AB$81,Spielerliste!$A$1:$C$480,2)) -> Nikolic Milosav | AD52: =IF($AB$6:$AB$81="","",VLOOKUP($AB$6:$AB$81,Spielerliste!$A$1:$C$480,3)) -> Koblach | AE52: 91 | AF52: =AG52-AE52 -> 44 | AG52: 135 | AH52: 1 | AI52: 86 | AJ52: =AK52-AI52 -> 44 | AK52: 130 | AL52: 2 | AM52: =AE52+AI52 -> 177 | AN52: =AF52+AJ52 -> 88 | AO52: =AG52+AK52 -> 265 | AP52: =AH52+AL52 -> 3
A53: 48 | B53: 138 | C53: Häusle Norbert | D53: Koblach | E53: 72 | F53: 27 | G53: 99 | H53: 4 | I53: 77 | J53: 23 | K53: 100 | L53: 7 | M53: 149 | N53: 50 | O53: 199 | P53: 11 | AA53: 48 | AC53: =IF($AB$6:$AB$81="","",VLOOKUP($AB$6:$AB$81,Spielerliste!$A$1:$C$480,2)) ->  | AD53: =IF($AB$6:$AB$81="","",VLOOKUP($AB$6:$AB$81,Spielerliste!$A$1:$C$480,3)) ->  | AF53: 0 | AJ53: 0 | AM53: 0 | AN53: 0 | AO53: 0 | AP53: 0
A54: 49 | B54: 28 | C54: Stadlmayr Wolfgang | D54: Bürs | E54: 79 | F54: 36 | G54: 115 | H54: 3 | I54: 58 | J54: 24 | K54: 82 | L54: 5 | M54: 137 | N54: 60 | O54: 197 | P54: 8 | AA54: 49 | AB54: 145 | AC54: =IF($AB$6:$AB$81="","",VLOOKUP($AB$6:$AB$81,Spielerliste!$A$1:$C$480,2)) -> Metzler Johann | AD54: =IF($AB$6:$AB$81="","",VLOOKUP($AB$6:$AB$81,Spielerliste!$A$1:$C$480,3)) -> Koblach | AE54: 80 | AF54: 26 | AG54: 106 | AH54: 5 | AI54: 88 | AJ54: 24 | AK54: 112 | AL54: 8 | AM54: 168 | AN54: 50 | AO54: 218 | AP54: 13
A55: 50 | B55: 292 | C55: Munz Karl | D55: Partenen | E55: 70 | F55: 17 | G55: 87 | H55: 6 | I55: 79 | J55: 25 | K55: 104 | L55: 5 | M55: 149 | N55: 42 | O55: 191 | P55: 11 | AA55: 50 | AB55: 1 | AC55: =IF($AB$6:$AB$81="","",VLOOKUP($AB$6:$AB$81,Spielerliste!$A$1:$C$480,2)) -> Bertsch Gerhard | AD55: =IF($AB$6:$AB$81="","",VLOOKUP($AB$6:$AB$81,Spielerliste!$A$1:$C$480,3)) -> Bludenz | AE55: 74 | AF55: 25 | AG55: 99 | AH55: 4 | AI55: 81 | AJ55: 26 | AK55: 107 | AL55: 4 | AM55: 155 | AN55: 51 | AO55: 206 | AP55: 8
A56: 51 | B56: 283 | C56: Riemer Herbert | D56: ESV Br-Wo | E56: 74 | F56: 17 | G56: 91 | H56: 6 | I56: 67 | J56: 31 | K56: 98 | L56: 4 | M56: 141 | N56: 48 | O56: 189 | P56: 10 | AA56: 51 | AB56: 45 | AC56: =IF($AB$6:$AB$81="","",VLOOKUP($AB$6:$AB$81,Spielerliste!$A$1:$C$480,2)) -> Kepe Franz | AD56: =IF($AB$6:$AB$81="","",VLOOKUP($AB$6:$AB$81,Spielerliste!$A$1:$C$480,3)) -> Dornbirn | AE56: 87 | AF56: 35 | AG56: 122 | AH56: 2 | AI56: 76 | AJ56: 27 | AK56: 103 | AL56: 4 | AM56: 163 | AN56: 62 | AO56: 225 | AP56: 6
A57: 52 | B57: 184 | C57: Heinle Otmar | D57: Mäder | E57: 54 | F57: 35 | G57: 89 | H57: 8 | I57: 67 | J57: 25 | K57: 92 | L57: 6 | M57: 121 | N57: 60 | O57: 181 | P57: 14 | AA57: 52 | AB57: 47 | AC57: =IF($AB$6:$AB$81="","",VLOOKUP($AB$6:$AB$81,Spielerliste!$A$1:$C$480,2)) -> Kezic Blago | AD57: =IF($AB$6:$AB$81="","",VLOOKUP($AB$6:$AB$81,Spielerliste!$A$1:$C$480,3)) -> Dornbirn | AE57: 92 | AF57: 35 | AG57: 127 | AH57: 2 | AI57: 82 | AJ57: 42 | AK57: 124 | AL57: 2 | AM57: 174 | AN57: 77 | AO57: 251 | AP57: 4
A58: 53 | B58: 226 | C58: Bastiani Karl | D58: Rheindelta | E58: 68 | F58: 27 | G58: 95 | H58: 5 | I58: 62 | J58: 16 | K58: 78 | L58: 11 | M58: 130 | N58: 43 | O58: 173 | P58: 16 | AA58: 53 | AB58: 43 | AC58: =IF($AB$6:$AB$81="","",VLOOKUP($AB$6:$AB$81,Spielerliste!$A$1:$C$480,2)) -> Gradwohl Josef | AD58: =IF($AB$6:$AB$81="","",VLOOKUP($AB$6:$AB$81,Spielerliste!$A$1:$C$480,3)) -> Dornbirn | AE58: 86 | AF58: 34 | AG58: 120 | AH58: 2 | AI58: 101 | AJ58: 36 | AK58: 137 | AL58: 1 | AM58: 187 | AN58: 70 | AO58: 257 | AP58: 3
AA59: 54 | AB59: 44 | AC59: =IF($AB$6:$AB$81="","",VLOOKUP($AB$6:$AB$81,Spielerliste!$A$1:$C$480,2)) -> Herceg Niki | AD59: =IF($AB$6:$AB$81="","",VLOOKUP($AB$6:$AB$81,Spielerliste!$A$1:$C$480,3)) -> Dornbirn | AE59: 81 | AF59: 23 | AG59: 104 | AH59: 5 | AI59: 86 | AJ59: 45 | AK59: 131 | AL59: 1 | AM59: 167 | AN59: 68 | AO59: 235 | AP59: 6
AA60: 55 | AB60: 54 | AC60: =IF($AB$6:$AB$81="","",VLOOKUP($AB$6:$AB$81,Spielerliste!$A$1:$C$480,2)) -> Vauce Gottfried | AD60: =IF($AB$6:$AB$81="","",VLOOKUP($AB$6:$AB$81,Spielerliste!$A$1:$C$480,3)) -> Dornbirn | AE60: 99 | AF60: =AG60-AE60 -> 34 | AG60: 133 | AH60: 2 | AI60: 79 | AJ60: =AK60-AI60 -> 35 | AK60: 114 | AL60: 2 | AM60: =AE60+AI60 -> 178 | AN60: =AF60+AJ60 -> 69 | AO60: =AG60+AK60 -> 247 | AP60: =AH60+AL60 -> 4

Sheet EM 60 Wurf Herren 2
A1: 60 Wurf - Einzelmeisterschaft 2019/20 | AA1: Einzelmeisterschaft 2019/20
A2: Ergebnisliste - HERREN 2 | AA2: Ergebnisliste - HERREN 2
A4: Pl. | C4: Name | D4: Ortsgr. | E4: 1. Durchgang | I4: 2. Durchgang | M4: Volle | N4: Abr. | O4: Ges. | P4: FW | AA4: Pl. | AC4: Name | AD4: Ortsgr. | AE4: 1. Durchgang | AI4: 2. Durchgang | AM4: Volle | AN4: Abr. | AO4: Ges. | AP4: FW
E5: V | F5: A | G5: G | H5: FW | I5: V | J5: A | K5: G | L5: FW | AE5: V | AF5: A | AG5: G | AH5: FW | AI5: V | AJ5: A | AK5: G | AL5: FW
A6: 1 | B6: 117 | C6: Prugg Franz | D6: Hohenems | E6: 91 | F6: 52 | G6: 143 | H6: 0 | I6: 86 | J6: 41 | K6: 127 | L6: 3 | M6: 177 | N6: 93 | O6: 270 | P6: 3 | AA6: 1 | AB6: 172 | AC6: =IF($AB$6:$AB$80="","",VLOOKUP($AB$6:$AB$80,Spielerliste!$A$1:$C$480,2)) -> Millien Karl | AD6: =IF($AB$6:$AB$80="","",VLOOKUP($AB$6:$AB$80,Spielerliste!$A$1:$C$480,3)) -> Lustenau | AE6: 68 | AF6: =AG6-AE6 -> 36 | AG6: 104 | AH6: 4 | AI6: 75 | AJ6: =AK6-AI6 -> 18 | AK6: 93 | AL6: 8 | AM6: =AE6+AI6 -> 143 | AN6: 54 | AO6: 197 | AP6: 12
A7: 2 | B7: 148 | C7: Schatzer Günther | D7: Koblach | E7: 85 | F7: 54 | G7: 139 | H7: 1 | I7: 95 | J7: 35 | K7: 130 | L7: 1 | M7: 180 | N7: 89 | O7: 269 | P7: 2 | AA7: 2 | AB7: 101 | AC7: =IF($AB$6:$AB$80="","",VLOOKUP($AB$6:$AB$80,Spielerliste!$A$1:$C$480,2)) -> Prutsch Franz | AD7: =IF($AB$6:$AB$80="","",VLOOKUP($AB$6:$AB$80,Spielerliste!$A$1:$C$480,3)) -> Hard | AE7: 84 | AF7: 37 | AG7: 121 | AH7: 1 | AI7: 76 | AJ7: 34 | AK7: 110 | AL7: 4 | AM7: 160 | AN7: 71 | AO7: 231 | AP7: 5
A8: 3 | B8: 267 | C8: Bischelsberger Helmut | D8: Wolfurt | E8: 85 | F8: 53 | G8: 138 | H8: 2 | I8: 85 | J8: 44 | K8: 129 | L8: 2 | M8: 170 | N8: 97 | O8: 267 | P8: 4 | AA8: 3 | AB8: 39 | AC8: =IF($AB$6:$AB$80="","",VLOOKUP($AB$6:$AB$80,Spielerliste!$A$1:$C$480,2)) -> Berthold Alfons | AD8: =IF($AB$6:$AB$80="","",VLOOKUP($AB$6:$AB$80,Spielerliste!$A$1:$C$480,3)) -> Dornbirn | AE8: 76 | AF8: 43 | AG8: 119 | AH8: 2 | AI8: 82 | AJ8: 43 | AK8: 125 | AL8: 2 | AM8: 158 | AN8: 86 | AO8: 244 | AP8: 4
A9: 4 | B9: 31 | C9: Voltolini Siegfried | D9: Bürs | E9: 88 | F9: 42 | G9: 130 | H9: 0 | I9: 99 | J9: 33 | K9: 132 | L9: 4 | M9: 187 | N9: 75 | O9: 262 | P9: 4 | AA9: 4 | AB9: 55 | AC9: =IF($AB$6:$AB$80="","",VLOOKUP($AB$6:$AB$80,Spielerliste!$A$1:$C$480,2)) -> Winder Josef | AD9: =IF($AB$6:$AB$80="","",VLOOKUP($AB$6:$AB$80,Spielerliste!$A$1:$C$480,3)) -> Dornbirn | AE9: 83 | AF9: 34 | AG9: 117 | AH9: 3 | AI9: 78 | AJ9: 36 | AK9: 114 | AL9: 3 | AM9: 161 | AN9: 70 | AO9: 231 | AP9: 6
A10: 5 | B10: 275 | C10: Wolf Othmar | D10: Wolfurt | E10: 97 | F10: 33 | G10: 130 | H10: 2 | I10: 90 | J10: 42 | K10: 132 | L10: 3 | M10: 187 | N10: 75 | O10: 262 | P10: 5 | AA10: 5 | AC10: =IF($AB$6:$AB$80="","",VLOOKUP($AB$6:$AB$80,Spielerliste!$A$1:$C$480,2)) ->  | AD10: =IF($AB$6:$AB$80="","",VLOOKUP($AB$6:$AB$80,Spielerliste!$A$1:$C$480,3)) ->  | AF10: 0 | AJ10: 0 | AM10: 0 | AN10: 0 | AO10: 0 | AP10: 0
A11: 6 | B11: 27 | C11: Scherrer Martin | D11: Bürs | E11: 87 | F11: 45 | G11: 132 | H11: 3 | I11: 84 | J11: 45 | K11: 129 | L11: 0 | M11: 171 | N11: 90 | O11: 261 | P11: 3 | AA11: 6 | AB11: 291 | AC11: =IF($AB$6:$AB$80="","",VLOOKUP($AB$6:$AB$80,Spielerliste!$A$1:$C$480,2)) -> Klinger Franz | AD11: =IF($AB$6:$AB$80="","",VLOOKUP($AB$6:$AB$80,Spielerliste!$A$1:$C$480,3)) -> Partenen | AE11: 74 | AF11: 24 | AG11: 98 | AH11: 5 | AI11: 77 | AJ11: 25 | AK11: 102 | AL11: 6 | AM11: 151 | AN11: 49 | AO11: 200 | AP11: 11
A12: 7 | B12: 69 | C12: Rüscher Kolumban | D12: Feldkirch | E12: 87 | F12: 43 | G12: 130 | H12: 1 | I12: 86 | J12: 44 | K12: 130 | L12: 2 | M12: 173 | N12: 87 | O12: 260 | P12: 3 | AA12: 7 | AB12: 293 | AC12: =IF($AB$6:$AB$80="","",VLOOKUP($AB$6:$AB$80,Spielerliste!$A$1:$C$480,2)) -> Pachole Bruno | AD12: =IF($AB$6:$AB$80="","",VLOOKUP($AB$6:$AB$80,Spielerliste!$A$1:$C$480,3)) -> Partenen | AE12: 71 | AF12: 42 | AG12: 113 | AH12: 2 | AI12: 76 | AJ12: 25 | AK12: 101 | AL12: 4 | AM12: 147 | AN12: 67 | AO12: 214 | AP12: 6
A13: 8 | B13: 62 | C13: Fink Reinold | D13: Feldkirch | E13: 87 | F13: 43 | G13: 130 | H13: 3 | I13: 95 | J13: 35 | K13: 130 | L13: 2 | M13: 182 | N13: 78 | O13: 260 | P13: 5 | AA13: 8 | AB13: 115 | AC13: =IF($AB$6:$AB$80="","",VLOOKUP($AB$6:$AB$80,Spielerliste!$A$1:$C$480,2)) -> Mitteregger Herbert | AD13: =IF($AB$6:$AB$80="","",VLOOKUP($AB$6:$AB$80,Spielerliste!$A$1:$C$480,3)) -> Hohenems | AE13: 82 | AF13: 53 | AG13: 135 | AH13: 1 | AI13: 81 | AJ13: 34 | AK13: 115 | AL13: 1 | AM13: 163 | AN13: 87 | AO13: 250 | AP13: 2
A14: 9 | B14: 212 | C14: Ender Helmut | D14: Rankweil | E14: 90 | F14: 45 | G14: 135 | H14: 0 | I14: 70 | J14: 51 | K14: 121 | L14: 0 | M14: 160 | N14: 96 | O14: 256 | P14: 0 | AA14: 9 | AB14: 247 | AC14: =IF($AB$6:$AB$80="","",VLOOKUP($AB$6:$AB$80,Spielerliste!$A$1:$C$480,2)) -> Bodingbauer Herbert | AD14: =IF($AB$6:$AB$80="","",VLOOKUP($AB$6:$AB$80,Spielerliste!$A$1:$C$480,3)) -> Vandans | AE14: 80 | AF14: 16 | AG14: 96 | AH14: 10 | AI14: 73 | AJ14: 26 | AK14: 99 | AL14: 3 | AM14: 153 | AN14: 42 | AO14: 195 | AP14: 13
A15: 10 | B15: 133 | C15: Egle Norbert | D15: Koblach | E15: 92 | F15: 45 | G15: 137 | H15: 0 | I15: 81 | J15: 34 | K15: 115 | L15: 1 | M15: 173 | N15: 79 | O15: 252 | P15: 1 | AA15: 10 | AB15: 248 | AC15: =IF($AB$6:$AB$80="","",VLOOKUP($AB$6:$AB$80,Spielerliste!$A$1:$C$480,2)) -> Bolter Manfred | AD15: =IF($AB$6:$AB$80="","",VLOOKUP($AB$6:$AB$80,Spielerliste!$A$1:$C$480,3)) -> Vandans | AE15: 80 | AF15: 18 | AG15: 98 | AH15: 6 | AI15: 79 | AJ15: 44 | AK15: 123 | AL15: 1 | AM15: 159 | AN15: 62 | AO15: 221 | AP15: 7
A16: 11 | B16: 40 | C16: Ehgartner Wolfgang | D16: Dornbirn | E16: 95 | F16: 33 | G16: 128 | H16: 3 | I16: 82 | J16: 41 | K16: 123 | L16: 0 | M16: 177 | N16: 74 | O16: 251 | P16: 3 | AA16: 11 | AB16: 249 | AC16: =IF($AB$6:$AB$80="","",VLOOKUP($AB$6:$AB$80,Spielerliste!$A$1:$C$480,2)) -> Egle Herbert | AD16: =IF($AB$6:$AB$80="","",VLOOKUP($AB$6:$AB$80,Spielerliste!$A$1:$C$480,3)) -> Vandans | AE16: 76 | AF16: 36 | AG16: 112 | AH16: 3 | AI16: 85 | AJ16: 36 | AK16: 121 | AL16: 2 | AM16: 161 | AN16: 72 | AO16: 233 | AP16: 5
A17: 12 | B17: 115 | C17: Mitteregger Herbert | D17: Hohenems | E17: 82 | F17: 53 | G17: 135 | H17: 1 | I17: 81 | J17: 34 | K17: 115 | L17: 1 | M17: 163 | N17: 87 | O17: 250 | P17: 2 | AA17: 12 | AB17: 251 | AC17: =IF($AB$6:$AB$80="","",VLOOKUP($AB$6:$AB$80,Spielerliste!$A$1:$C$480,2)) -> Kleboth Günther | AD17: =IF($AB$6:$AB$80="","",VLOOKUP($AB$6:$AB$80,Spielerliste!$A$1:$C$480,3)) -> Vandans | AE17: 68 | AF17: 34 | AG17: 102 | AH17: 3 | AI17: 63 | AJ17: 18 | AK17: 81 | AL17: 9 | AM17: 131 | AN17: 52 | AO17: 183 | AP17: 12
A18: 13 | B18: 29 | C18: Thönig Gilbert | D18: Bürs | E18: 87 | F18: 43 | G18: 130 | H18: 1 | I18: 82 | J18: 35 | K18: 117 | L18: 3 | M18: 169 | N18: 78 | O18: 247 | P18: 4 | AA18: 13 | AB18: 117 | AC18: =IF($AB$6:$AB$80="","",VLOOKUP($AB$6:$AB$80,Spielerliste!$A$1:$C$480,2)) -> Prugg Franz | AD18: =IF($AB$6:$AB$80="","",VLOOKUP($AB$6:$AB$80,Spielerliste!$A$1:$C$480,3)) -> Hohenems | AE18: 91 | AF18: 52 | AG18: 143 | AH18: 0 | AI18: 86 | AJ18: 41 | AK18: 127 | AL18: 3 | AM18: 177 | AN18: 93 | AO18: 270 | AP18: 3
A19: 14 | B19: 39 | C19: Berthold Alfons | D19: Dornbirn | E19: 76 | F19: 43 | G19: 119 | H19: 2 | I19: 82 | J19: 43 | K19: 125 | L19: 2 | M19: 158 | N19: 86 | O19: 244 | P19: 4 | AA19: 14 | AB19: 253 | AC19: =IF($AB$6:$AB$80="","",VLOOKUP($AB$6:$AB$80,Spielerliste!$A$1:$C$480,2)) -> Nägele Anton | AD19: =IF($AB$6:$AB$80="","",VLOOKUP($AB$6:$AB$80,Spielerliste!$A$1:$C$480,3)) -> Vandans | AE19: 83 | AF19: 27 | AG19: 110 | AH19: 5 | AI19: 94 | AJ19: 26 | AK19: 120 | AL19: 5 | AM19: 177 | AN19: 53 | AO19: 230 | AP19: 10
A20: 15 | B20: 281 | C20: Brichaz Franz | D20: ESV Br-Wo | E20: 83 | F20: 36 | G20: 119 | H20: 2 | I20: 83 | J20: 41 | K20: 124 | L20: 0 | M20: 166 | N20: 77 | O20: 243 | P20: 2 | AA20: 15 | AB20: 133 | AC20: =IF($AB$6:$AB$80="","",VLOOKUP($AB$6:$AB$80,Spielerliste!$A$1:$C$480,2)) -> Egle Norbert | AD20: =IF($AB$6:$AB$80="","",VLOOKUP($AB$6:$AB$80,Spielerliste!$A$1:$C$480,3)) -> Koblach | AE20: 92 | AF20: 45 | AG20: 137 | AH20: 0 | AI20: 81 | AJ20: 34 | AK20: 115 | AL20: 1 | AM20: 173 | AN20: 79 | AO20: 252 | AP20: 1
A21: 16 | B21: 242 | C21: Vazovec Roman | D21: Vorderwald | E21: 85 | F21: 45 | G21: 130 | H21: 1 | I21: 84 | J21: 25 | K21: 109 | L21: 5 | M21: 169 | N21: 70 | O21: 239 | P21: 6 | AA21: 16 | AC21: =IF($AB$6:$AB$80="","",VLOOKUP($AB$6:$AB$80,Spielerliste!$A$1:$C$480,2)) ->  | AD21: =IF($AB$6:$AB$80="","",VLOOKUP($AB$6:$AB$80,Spielerliste!$A$1:$C$480,3)) ->  | AF21: 0 | AJ21: 0 | AM21: 0 | AN21: 0 | AO21: 0 | AP21: 0
A22: 17 | B22: 135 | C22: Fleisch Friedl | D22: Koblach | E22: 80 | F22: 41 | G22: 121 | H22: 1 | I22: 90 | J22: 27 | K22: 117 | L22: 4 | M22: 170 | N22: 68 | O22: 238 | P22: 5 | AA22: 17 | AB22: 281 | AC22: =IF($AB$6:$AB$80="","",VLOOKUP($AB$6:$AB$80,Spielerliste!$A$1:$C$480,2)) -> Brichaz Franz | AD22: =IF($AB$6:$AB$80="","",VLOOKUP($AB$6:$AB$80,Spielerliste!$A$1:$C$480,3)) -> ESV Br-Wo | AE22: 83 | AF22: 36 | AG22: 119 | AH22: 2 | AI22: 83 | AJ22: 41 | AK22: 124 | AL22: 0 | AM22: 166 | AN22: 77 | AO22: 243 | AP22: 2
A23: 18 | B23: 268 | C23: Dostal Christian | D23: Wolfurt | E23: 73 | F23: 35 | G23: 108 | H23: 1 | I23: 83 | J23: 45 | K23: 128 | L23: 1 | M23: 156 | N23: 80 | O23: 236 | P23: 2 | AA23: 18 | AB23: 68 | AC23: =IF($AB$6:$AB$80="","",VLOOKUP($AB$6:$AB$80,Spielerliste!$A$1:$C$480,2)) -> Porod Klaus | AD23: =IF($AB$6:$AB$80="","",VLOOKUP($AB$6:$AB$80,Spielerliste!$A$1:$C$480,3)) -> Feldkirch | AE23: 92 | AF23: 18 | AG23: 110 | AH23: 9 | AI23: 85 | AJ23: 34 | AK23: 119 | AL23: 6 | AM23: 177 | AN23: 52 | AO23: 229 | AP23: 15
A24: 19 | B24: 63 | C24: Kodal Heribert | D24: Feldkirch | E24: 85 | F24: 43 | G24: 128 | H24: 2 | I24: 73 | J24: 35 | K24: 108 | L24: 1 | M24: 158 | N24: 78 | O24: 236 | P24: 3 | AA24: 19 | AB24: 69 | AC24: =IF($AB$6:$AB$80="","",VLOOKUP($AB$6:$AB$80,Spielerliste!$A$1:$C$480,2)) -> Rüscher Kolumban | AD24: =IF($AB$6:$AB$80="","",VLOOKUP($AB$6:$AB$80,Spielerliste!$A$1:$C$480,3)) -> Feldkirch | AE24: 87 | AF24: 43 | AG24: 130 | AH24: 1 | AI24: 86 | AJ24: 44 | AK24: 130 | AL24: 2 | AM24: 173 | AN24: 87 | AO24: 260 | AP24: 3
A25: 20 | B25: 213 | C25: Fetzel Anton | D25: Rankweil | E25: 82 | F25: 41 | G25: 123 | H25: 0 | I25: 87 | J25: 25 | K25: 112 | L25: 4 | M25: 169 | N25: 66 | O25: 235 | P25: 4 | AA25: 20 | AB25: 62 | AC25: =IF($AB$6:$AB$80="","",VLOOKUP($AB$6:$AB$80,Spielerliste!$A$1:$C$480,2)) -> Fink Reinold | AD25: =IF($AB$6:$AB$80="","",VLOOKUP($AB$6:$AB$80,Spielerliste!$A$1:$C$480,3)) -> Feldkirch | AE25: 87 | AF25: 43 | AG25: 130 | AH25: 3 | AI25: 95 | AJ25: 35 | AK25: 130 | AL25: 2 | AM25: 182 | AN25: 78 | AO25: 260 | AP25: 5
A26: 21 | B26: 270 | C26: Lick Max | D26: Wolfurt | E26: 87 | F26: 34 | G26: 121 | H26: 1 | I26: 89 | J26: 25 | K26: 114 | L26: 4 | M26: 176 | N26: 59 | O26: 235 | P26: 5 | AA26: 21 | AB26: 63 | AC26: =IF($AB$6:$AB$80="","",VLOOKUP($AB$6:$AB$80,Spielerliste!$A$1:$C$480,2)) -> Kodal Heribert | AD26: =IF($AB$6:$AB$80="","",VLOOKUP($AB$6:$AB$80,Spielerliste!$A$1:$C$480,3)) -> Feldkirch | AE26: 85 | AF26: 43 | AG26: 128 | AH26: 2 | AI26: 73 | AJ26: 35 | AK26: 108 | AL26: 1 | AM26: 158 | AN26: 78 | AO26: 236 | AP26: 3
A27: 22 | B27: 147 | C27: Pieber Anton | D27: Koblach | E27: 73 | F27: 53 | G27: 126 | H27: 2 | I27: 82 | J27: 26 | K27: 108 | L27: 3 | M27: 155 | N27: 79 | O27: 234 | P27: 5 | AA27: 22 | AB27: 193 | AC27: =IF($AB$6:$AB$80="","",VLOOKUP($AB$6:$AB$80,Spielerliste!$A$1:$C$480,2)) -> Vallant Karl | AD27: =IF($AB$6:$AB$80="","",VLOOKUP($AB$6:$AB$80,Spielerliste!$A$1:$C$480,3)) -> Mäder | AE27: 81 | AF27: 36 | AG27: 117 | AH27: 2 | AI27: 87 | AJ27: 25 | AK27: 112 | AL27: 5 | AM27: 168 | AN27: 61 | AO27: 229 | AP27: 7
A28: 23 | B28: 139 | C28: Häusle Reinhold | D28: Koblach | E28: 75 | F28: 43 | G28: 118 | H28: 3 | I28: 71 | J28: 44 | K28: 115 | L28: 0 | M28: 146 | N28: 87 | O28: 233 | P28: 3 | AA28: 23 | AB28: 27 | AC28: =IF($AB$6:$AB$80="","",VLOOKUP($AB$6:$AB$80,Spielerliste!$A$1:$C$480,2)) -> Scherrer Martin | AD28: =IF($AB$6:$AB$80="","",VLOOKUP($AB$6:$AB$80,Spielerliste!$A$1:$C$480,3)) -> Bürs | AE28: 87 | AF28: 45 | AG28: 132 | AH28: 3 | AI28: 84 | AJ28: 45 | AK28: 129 | AL28: 0 | AM28: 171 | AN28: 90 | AO28: 261 | AP28: 3
A29: 24 | B29: 249 | C29: Egle Herbert | D29: Vandans | E29: 76 | F29: 36 | G29: 112 | H29: 3 | I29: 85 | J29: 36 | K29: 121 | L29: 2 | M29: 161 | N29: 72 | O29: 233 | P29: 5 | AA29: 24 | AB29: 147 | AC29: =IF($AB$6:$AB$80="","",VLOOKUP($AB$6:$AB$80,Spielerliste!$A$1:$C$480,2)) -> Pieber Anton | AD29: =IF($AB$6:$AB$80="","",VLOOKUP($AB$6:$AB$80,Spielerliste!$A$1:$C$480,3)) -> Koblach | AE29: 73 | AF29: 53 | AG29: 126 | AH29: 2 | AI29: 82 | AJ29: 26 | AK29: 108 | AL29: 3 | AM29: 155 | AN29: 79 | AO29: 234 | AP29: 5
A30: 25 | B30: 101 | C30: Prutsch Franz | D30: Hard | E30: 84 | F30: 37 | G30: 121 | H30: 1 | I30: 76 | J30: 34 | K30: 110 | L30: 4 | M30: 160 | N30: 71 | O30: 231 | P30: 5 | AA30: 25 | AB30: 149 | AC30: =IF($AB$6:$AB$80="","",VLOOKUP($AB$6:$AB$80,Spielerliste!$A$1:$C$480,2)) -> Schellhorn Ludwig | AD30: =IF($AB$6:$AB$80="","",VLOOKUP($AB$6:$AB$80,Spielerliste!$A$1:$C$480,3)) -> Koblach | AE30: 90 | AF30: 26 | AG30: 116 | AH30: 6 | AI30: 69 | AJ30: 25 | AK30: 94 | AL30: 5 | AM30: 159 | AN30: 51 | AO30: 210 | AP30: 11
A31: 26 | B31: 231 | C31: Scheiber Felix | D31: Rheindelta | E31: 75 | F31: 43 | G31: 118 | H31: 2 | I31: 86 | J31: 27 | K31: 113 | L31: 2 | M31: 161 | N31: 70 | O31: 231 | P31: 4 | AA31: 26 | AB31: 31 | AC31: =IF($AB$6:$AB$80="","",VLOOKUP($AB$6:$AB$80,Spielerliste!$A$1:$C$480,2)) -> Voltolini Siegfried | AD31: =IF($AB$6:$AB$80="","",VLOOKUP($AB$6:$AB$80,Spielerliste!$A$1:$C$480,3)) -> Bürs | AE31: 88 | AF31: 42 | AG31: 130 | AH31: 0 | AI31: 99 | AJ31: 33 | AK31: 132 | AL31: 4 | AM31: 187 | AN31: 75 | AO31: 262 | AP31: 4
A32: 27 | B32: 55 | C32: Winder Josef | D32: Dornbirn | E32: 83 | F32: 34 | G32: 117 | H32: 3 | I32: 78 | J32: 36 | K32: 114 | L32: 3 | M32: 161 | N32: 70 | O32: 231 | P32: 6 | AA32: 27 | AB32: 29 | AC32: =IF($AB$6:$AB$80="","",VLOOKUP($AB$6:$AB$80,Spielerliste!$A$1:$C$480,2)) -> Thönig Gilbert | AD32: =IF($AB$6:$AB$80="","",VLOOKUP($AB$6:$AB$80,Spielerliste!$A$1:$C$480,3)) -> Bürs | AE32: 87 | AF32: 43 | AG32: 130 | AH32: 1 | AI32: 82 | AJ32: 35 | AK32: 117 | AL32: 3 | AM32: 169 | AN32: 78 | AO32: 247 | AP32: 4
A33: 28 | B33: 238 | C33: Jäger Heinz | D33: Vorderwald | E33: 70 | F33: 41 | G33: 111 | H33: 1 | I33: 84 | J33: 35 | K33: 119 | L33: 2 | M33: 154 | N33: 76 | O33: 230 | P33: 3 | AA33: 28 | AB33: 26 | AC33: =IF($AB$6:$AB$80="","",VLOOKUP($AB$6:$AB$80,Spielerliste!$A$1:$C$480,2)) -> Hepberger Erwin | AD33: =IF($AB$6:$AB$80="","",VLOOKUP($AB$6:$AB$80,Spielerliste!$A$1:$C$480,3)) -> Bürs | AE33: 61 | AF33: 24 | AG33: 85 | AH33: 5 | AI33: 70 | AJ33: 27 | AK33: 97 | AL33: 7 | AM33: 131 | AN33: 51 | AO33: 182 | AP33: 12
A34: 29 | B34: 253 | C34: Nägele Anton | D34: Vandans | E34: 83 | F34: 27 | G34: 110 | H34: 5 | I34: 94 | J34: 26 | K34: 120 | L34: 5 | M34: 177 | N34: 53 | O34: 230 | P34: 10 | AA34: 29 | AB34: 148 | AC34: =IF($AB$6:$AB$80="","",VLOOKUP($AB$6:$AB$80,Spielerliste!$A$1:$C$480,2)) -> Schatzer Günther | AD34: =IF($AB$6:$AB$80="","",VLOOKUP($AB$6:$AB$80,Spielerliste!$A$1:$C$480,3)) -> Koblach | AE34: 85 | AF34: 54 | AG34: 139 | AH34: 1 | AI34: 95 | AJ34: 35 | AK34: 130 | AL34: 1 | AM34: 180 | AN34: 89 | AO34: 269 | AP34: 2
A35: 30 | B35: 211 | C35: Dreier Fridolin | D35: Rankweil | E35: 77 | F35: 26 | G35: 103 | H35: 4 | I35: 84 | J35: 42 | K35: 126 | L35: 3 | M35: 161 | N35: 68 | O35: 229 | P35: 7 | AA35: 30 | AB35: 139 | AC35: =IF($AB$6:$AB$80="","",VLOOKUP($AB$6:$AB$80,Spielerliste!$A$1:$C$480,2)) -> Häusle Reinhold | AD35: =IF($AB$6:$AB$80="","",VLOOKUP($AB$6:$AB$80,Spielerliste!$A$1:$C$480,3)) -> Koblach | AE35: 75 | AF35: 43 | AG35: 118 | AH35: 3 | AI35: 71 | AJ35: 44 | AK35: 115 | AL35: 0 | AM35: 146 | AN35: 87 | AO35: 233 | AP35: 3
A36: 31 | B36: 193 | C36: Vallant Karl | D36: Mäder | E36: 81 | F36: 36 | G36: 117 | H36: 2 | I36: 87 | J36: 25 | K36: 112 | L36: 5 | M36: 168 | N36: 61 | O36: 229 | P36: 7 | AA36: 31 | AB36: 135 | AC36: =IF($AB$6:$AB$80="","",VLOOKUP($AB$6:$AB$80,Spielerliste!$A$1:$C$480,2)) -> Fleisch Friedl | AD36: =IF($AB$6:$AB$80="","",VLOOKUP($AB$6:$AB$80,Spielerliste!$A$1:$C$480,3)) -> Koblach | AE36: 80 | AF36: 41 | AG36: 121 | AH36: 1 | AI36: 90 | AJ36: 27 | AK36: 117 | AL36: 4 | AM36: 170 | AN36: 68 | AO36: 238 | AP36: 5
A37: 32 | B37: 68 | C37: Porod Klaus | D37: Feldkirch | E37: 92 | F37: 18 | G37: 110 | H37: 9 | I37: 85 | J37: 34 | K37: 119 | L37: 6 | M37: 177 | N37: 52 | O37: 229 | P37: 15 | AA37: 32 | AB37: 140 | AC37: =IF($AB$6:$AB$80="","",VLOOKUP($AB$6:$AB$80,Spielerliste!$A$1:$C$480,2)) -> Hohensinger Franz | AD37: =IF($AB$6:$AB$80="","",VLOOKUP($AB$6:$AB$80,Spielerliste!$A$1:$C$480,3)) -> Koblach | AE37: 86 | AF37: 26 | AG37: 112 | AH37: 5 | AI37: 76 | AJ37: 27 | AK37: 103 | AL37: 5 | AM37: 162 | AN37: 53 | AO37: 215 | AP37: 10
A38: 33 | B38: 168 | C38: Hoos Ferenc | D38: Lustenau | E38: 73 | F38: 36 | G38: 109 | H38: 3 | I38: 82 | J38: 32 | K38: 114 | L38: 3 | M38: 155 | N38: 68 | O38: 223 | P38: 6 | AA38: 33 | AC38: =IF($AB$6:$AB$80="","",VLOOKUP($AB$6:$AB$80,Spielerliste!$A$1:$C$480,2)) ->  | AD38: =IF($AB$6:$AB$80="","",VLOOKUP($AB$6:$AB$80,Spielerliste!$A$1:$C$480,3)) ->  | AF38: 0 | AJ38: 0 | AM38: =AE38+AI38 -> 0 | AN38: 0 | AO38: 0 | AP38: 0
A39: 34 | B39: 89 | C39: Schatzmann Robert | D39: Götzis | E39: 79 | F39: 34 | G39: 113 | H39: 3 | I39: 74 | J39: 34 | K39: 108 | L39: 4 | M39: 153 | N39: 68 | O39: 221 | P39: 7 | AA39: 34 | AB39: 238 | AC39: =IF($AB$6:$AB$80="","",VLOOKUP($AB$6:$AB$80,Spielerliste!$A$1:$C$480,2)) -> Jäger Heinz | AD39: =IF($AB$6:$AB$80="","",VLOOKUP($AB$6:$AB$80,Spielerliste!$A$1:$C$480,3)) -> Vorderwald | AE39: 70 | AF39: 41 | AG39: 111 | AH39: 1 | AI39: 84 | AJ39: 35 | AK39: 119 | AL39: 2 | AM39: 154 | AN39: 76 | AO39: 230 | AP39: 3
A40: 35 | B40: 248 | C40: Bolter Manfred | D40: Vandans | E40: 80 | F40: 18 | G40: 98 | H40: 6 | I40: 79 | J40: 44 | K40: 123 | L40: 1 | M40: 159 | N40: 62 | O40: 221 | P40: 7 | AA40: 35 | AB40: 242 | AC40: =IF($AB$6:$AB$80="","",VLOOKUP($AB$6:$AB$80,Spielerliste!$A$1:$C$480,2)) -> Vazovec Roman | AD40: =IF($AB$6:$AB$80="","",VLOOKUP($AB$6:$AB$80,Spielerliste!$A$1:$C$480,3)) -> Vorderwald | AE40: 85 | AF40: 45 | AG40: 130 | AH40: 1 | AI40: 84 | AJ40: 25 | AK40: 109 | AL40: 5 | AM40: 169 | AN40: 70 | AO40: 239 | AP40: 6
A41: 36 | B41: 227 | C41: Fetz Hans | D41: Rheindelta | E41: 83 | F41: 33 | G41: 116 | H41: 4 | I41: 81 | J41: 24 | K41: 105 | L41: 6 | M41: 164 | N41: 57 | O41: 221 | P41: 10 | AA41: 36 | AB41: 96 | AC41: =IF($AB$6:$AB$80="","",VLOOKUP($AB$6:$AB$80,Spielerliste!$A$1:$C$480,2)) -> Bickel Manfred | AD41: =IF($AB$6:$AB$80="","",VLOOKUP($AB$6:$AB$80,Spielerliste!$A$1:$C$480,3)) -> Hard | AE41: 66 | AF41: 42 | AG41: 108 | AH41: 2 | AI41: 73 | AJ41: 18 | AK41: 91 | AL41: 8 | AM41: 139 | AN41: 60 | AO41: 199 | AP41: 10
A42: 37 | B42: 221 | C42: Simoner Gottfried | D42: Rankweil | E42: 71 | F42: 35 | G42: 106 | H42: 2 | I42: 81 | J42: 33 | K42: 114 | L42: 4 | M42: 152 | N42: 68 | O42: 220 | P42: 6 | AA42: 37 | AB42: 227 | AC42: =IF($AB$6:$AB$80="","",VLOOKUP($AB$6:$AB$80,Spielerliste!$A$1:$C$480,2)) -> Fetz Hans | AD42: =IF($AB$6:$AB$80="","",VLOOKUP($AB$6:$AB$80,Spielerliste!$A$1:$C$480,3)) -> Rheindelta | AE42: 83 | AF42: 33 | AG42: 116 | AH42: 4 | AI42: 81 | AJ42: 24 | AK42: 105 | AL42: 6 | AM42: 164 | AN42: 57 | AO42: 221 | AP42: 10
A43: 38 | B43: 274 | C43: Wipplinger Hubert | D43: Wolfurt | E43: 76 | F43: 26 | G43: 102 | H43: 1 | I43: 81 | J43: 35 | K43: 116 | L43: 3 | M43: 157 | N43: 61 | O43: 218 | P43: 4 | AA43: 38 | AB43: 231 | AC43: =IF($AB$6:$AB$80="","",VLOOKUP($AB$6:$AB$80,Spielerliste!$A$1:$C$480,2)) -> Scheiber Felix | AD43: =IF($AB$6:$AB$80="","",VLOOKUP($AB$6:$AB$80,Spielerliste!$A$1:$C$480,3)) -> Rheindelta | AE43: 75 | AF43: 43 | AG43: 118 | AH43: 2 | AI43: 86 | AJ43: 27 | AK43: 113 | AL43: 2 | AM43: 161 | AN43: 70 | AO43: 231 | AP43: 4
A44: 39 | B44: 272 | C44: Moser Mathias | D44: Wolfurt | E44: 82 | F44: 34 | G44: 116 | H44: 4 | I44: 77 | J44: 25 | K44: 102 | L44: 5 | M44: 159 | N44: 59 | O44: 218 | P44: 9 | AA44: 39 | AB44: 213 | AC44: =IF($AB$6:$AB$80="","",VLOOKUP($AB$6:$AB$80,Spielerliste!$A$1:$C$480,2)) -> Fetzel Anton | AD44: =IF($AB$6:$AB$80="","",VLOOKUP($AB$6:$AB$80,Spielerliste!$A$1:$C$480,3)) -> Rankweil | AE44: 82 | AF44: 41 | AG44: 123 | AH44: 0 | AI44: 87 | AJ44: 25 | AK44: 112 | AL44: 4 | AM44: 169 | AN44: 66 | AO44: 235 | AP44: 4
A45: 40 | B45: 140 | C45: Hohensinger Franz | D45: Koblach | E45: 86 | F45: 26 | G45: 112 | H45: 5 | I45: 76 | J45: 27 | K45: 103 | L45: 5 | M45: 162 | N45: 53 | O45: 215 | P45: 10 | AA45: 40 | AB45: 228 | AC45: =IF($AB$6:$AB$80="","",VLOOKUP($AB$6:$AB$80,Spielerliste!$A$1:$C$480,2)) -> Gobbi Paolo | AD45: =IF($AB$6:$AB$80="","",VLOOKUP($AB$6:$AB$80,Spielerliste!$A$1:$C$480,3)) -> Rheindelta | AE45: 82 | AF45: 25 | AG45: 107 | AH45: 4 | AI45: 80 | AJ45: 18 | AK45: 98 | AL45: 7 | AM45: 162 | AN45: 43 | AO45: 205 | AP45: 11
A46: 41 | B46: 293 | C46: Pachole Bruno | D46: Partenen | E46: 71 | F46: 42 | G46: 113 | H46: 2 | I46: 76 | J46: 25 | K46: 101 | L46: 4 | M46: 147 | N46: 67 | O46: 214 | P46: 6 | AA46: 41 | AB46: 211 | AC46: =IF($AB$6:$AB$80="","",VLOOKUP($AB$6:$AB$80,Spielerliste!$A$1:$C$480,2)) -> Dreier Fridolin | AD46: =IF($AB$6:$AB$80="","",VLOOKUP($AB$6:$AB$80,Spielerliste!$A$1:$C$480,3)) -> Rankweil | AE46: 77 | AF46: 26 | AG46: 103 | AH46: 4 | AI46: 84 | AJ46: 42 | AK46: 126 | AL46: 3 | AM46: 161 | AN46: 68 | AO46: 229 | AP46: 7
A47: 42 | B47: 166 | C47: Brauchard Johann | D47: Lustenau | E47: 76 | F47: 33 | G47: 109 | H47: 3 | I47: 77 | J47: 26 | K47: 103 | L47: 9 | M47: 153 | N47: 59 | O47: 212 | P47: 12 | AA47: 42 | AB47: 212 | AC47: =IF($AB$6:$AB$80="","",VLOOKUP($AB$6:$AB$80,Spielerliste!$A$1:$C$480,2)) -> Ender Helmut | AD47: =IF($AB$6:$AB$80="","",VLOOKUP($AB$6:$AB$80,Spielerliste!$A$1:$C$480,3)) -> Rankweil | AE47: 90 | AF47: 45 | AG47: 135 | AH47: 0 | AI47: 70 | AJ47: 51 | AK47: 121 | AL47: 0 | AM47: 160 | AN47: 96 | AO47: 256 | AP47: 0
A48: 43 | B48: 48 | C48: Kofler Reinhard | D48: Dornbirn | E48: 86 | F48: 27 | G48: 113 | H48: 5 | I48: 72 | J48: 27 | K48: 99 | L48: 6 | M48: 158 | N48: 54 | O48: 212 | P48: 11 | AA48: 43 | AB48: 161 | AC48: =IF($AB$6:$AB$80="","",VLOOKUP($AB$6:$AB$80,Spielerliste!$A$1:$C$480,2)) -> Koppler Günter | AD48: =IF($AB$6:$AB$80="","",VLOOKUP($AB$6:$AB$80,Spielerliste!$A$1:$C$480,3)) -> Lauterach | AE48: 78 | AF48: 26 | AG48: 104 | AH48: 5 | AI48: 73 | AJ48: 30 | AK48: 103 | AL48: 3 | AM48: 151 | AN48: 56 | AO48: 207 | AP48: 8
A49: 44 | B49: 255 | C49: Schwarzendahl Dieter | D49: Vandans | E49: 74 | F49: 35 | G49: 109 | H49: 2 | I49: 75 | J49: 27 | K49: 102 | L49: 5 | M49: 149 | N49: 62 | O49: 211 | P49: 7 | AA49: 44 | AB49: 218 | AC49: =IF($AB$6:$AB$80="","",VLOOKUP($AB$6:$AB$80,Spielerliste!$A$1:$C$480,2)) -> Müllauer Ernst | AD49: =IF($AB$6:$AB$80="","",VLOOKUP($AB$6:$AB$80,Spielerliste!$A$1:$C$480,3)) -> Rankweil | AE49: 81 | AF49: 33 | AG49: 114 | AH49: 4 | AI49: 73 | AJ49: 24 | AK49: 97 | AL49: 5 | AM49: 154 | AN49: 57 | AO49: 211 | AP49: 9
A50: 45 | B50: 218 | C50: Müllauer Ernst | D50: Rankweil | E50: 81 | F50: 33 | G50: 114 | H50: 4 | I50: 73 | J50: 24 | K50: 97 | L50: 5 | M50: 154 | N50: 57 | O50: 211 | P50: 9 | AA50: 45 | AB50: 166 | AC50: =IF($AB$6:$AB$80="","",VLOOKUP($AB$6:$AB$80,Spielerliste!$A$1:$C$480,2)) -> Brauchard Johann | AD50: =IF($AB$6:$AB$80="","",VLOOKUP($AB$6:$AB$80,Spielerliste!$A$1:$C$480,3)) -> Lustenau | AE50: 76 | AF50: 33 | AG50: 109 | AH50: 3 | AI50: 77 | AJ50: 26 | AK50: 103 | AL50: 9 | AM50: 153 | AN50: 59 | AO50: 212 | AP50: 12
A51: 46 | B51: 149 | C51: Schellhorn Ludwig | D51: Koblach | E51: 90 | F51: 26 | G51: 116 | H51: 6 | I51: 69 | J51: 25 | K51: 94 | L51: 5 | M51: 159 | N51: 51 | O51: 210 | P51: 11 | AA51: 46 | AB51: 221 | AC51: =IF($AB$6:$AB$80="","",VLOOKUP($AB$6:$AB$80,Spielerliste!$A$1:$C$480,2)) -> Simoner Gottfried | AD51: =IF($AB$6:$AB$80="","",VLOOKUP($AB$6:$AB$80,Spielerliste!$A$1:$C$480,3)) -> Rankweil | AE51: 71 | AF51: 35 | AG51: 106 | AH51: 2 | AI51: 81 | AJ51: 33 | AK51: 114 | AL51: 4 | AM51: 152 | AN51: 68 | AO51: 220 | AP51: 6
A52: 47 | B52: 170 | C52: Karitnig Franz | D52: Lustenau | E52: 76 | F52: 26 | G52: 102 | H52: 5 | I52: 82 | J52: 25 | K52: 107 | L52: 5 | M52: 158 | N52: 51 | O52: 209 | P52: 10 | AA52: 47 | AB52: 176 | AC52: =IF($AB$6:$AB$80="","",VLOOKUP($AB$6:$AB$80,Spielerliste!$A$1:$C$480,2)) -> Witschnigg Johann | AD52: =IF($AB$6:$AB$80="","",VLOOKUP($AB$6:$AB$80,Spielerliste!$A$1:$C$480,3)) -> Lustenau | AE52: 68 | AF52: 17 | AG52: 85 | AH52: 7 | AI52: 70 | AJ52: 17 | AK52: 87 | AL52: 11 | AM52: 138 | AN52: 34 | AO52: 172 | AP52: 18
A53: 48 | B53: 161 | C53: Koppler Günter | D53: Lauterach | E53: 78 | F53: 26 | G53: 104 | H53: 5 | I53: 73 | J53: 30 | K53: 103 | L53: 3 | M53: 151 | N53: 56 | O53: 207 | P53: 8 | AA53: 48 | AB53: 270 | AC53: =IF($AB$6:$AB$80="","",VLOOKUP($AB$6:$AB$80,Spielerliste!$A$1:$C$480,2)) -> Lick Max | AD53: =IF($AB$6:$AB$80="","",VLOOKUP($AB$6:$AB$80,Spielerliste!$A$1:$C$480,3)) -> Wolfurt | AE53: 87 | AF53: 34 | AG53: 121 | AH53: 1 | AI53: 89 | AJ53: 25 | AK53: 114 | AL53: 4 | AM53: 176 | AN53: 59 | AO53: 235 | AP53: 5
A54: 49 | B54: 228 | C54: Gobbi Paolo | D54: Rheindelta | E54: 82 | F54: 25 | G54: 107 | H54: 4 | I54: 80 | J54: 18 | K54: 98 | L54: 7 | M54: 162 | N54: 43 | O54: 205 | P54: 11 | AA54: 49 | AB54: 168 | AC54: =IF($AB$6:$AB$80="","",VLOOKUP($AB$6:$AB$80,Spielerliste!$A$1:$C$480,2)) -> Hoos Ferenc | AD54: =IF($AB$6:$AB$80="","",VLOOKUP($AB$6:$AB$80,Spielerliste!$A$1:$C$480,3)) -> Lustenau | AE54: 73 | AF54: 36 | AG54: 109 | AH54: 3 | AI54: 82 | AJ54: 32 | AK54: 114 | AL54: 3 | AM54: 155 | AN54: 68 | AO54: 223 | AP54: 6
A55: 50 | B55: 291 | C55: Klinger Franz | D55: Partenen | E55: 74 | F55: 24 | G55: 98 | H55: 5 | I55: 77 | J55: 25 | K55: 102 | L55: 6 | M55: 151 | N55: 49 | O55: 200 | P55: 11 | AA55: 50 | AB55: 170 | AC55: =IF($AB$6:$AB$80="","",VLOOKUP($AB$6:$AB$80,Spielerliste!$A$1:$C$480,2)) -> Karitnig Franz | AD55: =IF($AB$6:$AB$80="","",VLOOKUP($AB$6:$AB$80,Spielerliste!$A$1:$C$480,3)) -> Lustenau | AE55: 76 | AF55: 26 | AG55: 102 | AH55: 5 | AI55: 82 | AJ55: 25 | AK55: 107 | AL55: 5 | AM55: 158 | AN55: 51 | AO55: 209 | AP55: 10
A56: 51 | B56: 96 | C56: Bickel Manfred | D56: Hard | E56: 66 | F56: 42 | G56: 108 | H56: 2 | I56: 73 | J56: 18 | K56: 91 | L56: 8 | M56: 139 | N56: 60 | O56: 199 | P56: 10 | AA56: 51 | AB56: 274 | AC56: =IF($AB$6:$AB$80="","",VLOOKUP($AB$6:$AB$80,Spielerliste!$A$1:$C$480,2)) -> Wipplinger Hubert | AD56: =IF($AB$6:$AB$80="","",VLOOKUP($AB$6:$AB$80,Spielerliste!$A$1:$C$480,3)) -> Wolfurt | AE56: 76 | AF56: 26 | AG56: 102 | AH56: 1 | AI56: 81 | AJ56: 35 | AK56: 116 | AL56: 3 | AM56: 157 | AN56: 61 | AO56: 218 | AP56: 4
A57: 52 | B57: 172 | C57: Millien Karl | D57: Lustenau | E57: 68 | F57: 36 | G57: 104 | H57: 4 | I57: 75 | J57: 18 | K57: 93 | L57: 8 | M57: 143 | N57: 54 | O57: 197 | P57: 12 | AA57: 52 | AB57: 275 | AC57: =IF($AB$6:$AB$80="","",VLOOKUP($AB$6:$AB$80,Spielerliste!$A$1:$C$480,2)) -> Wolf Othmar | AD57: =IF($AB$6:$AB$80="","",VLOOKUP($AB$6:$AB$80,Spielerliste!$A$1:$C$480,3)) -> Wolfurt | AE57: 97 | AF57: 33 | AG57: 130 | AH57: 2 | AI57: 90 | AJ57: 42 | AK57: 132 | AL57: 3 | AM57: 187 | AN57: 75 | AO57: 262 | AP57: 5
A58: 53 | B58: 247 | C58: Bodingbauer Herbert | D58: Vandans | E58: 80 | F58: 16 | G58: 96 | H58: 10 | I58: 73 | J58: 26 | K58: 99 | L58: 3 | M58: 153 | N58: 42 | O58: 195 | P58: 13 | AA58: 53 | AB58: 267 | AC58: =IF($AB$6:$AB$80="","",VLOOKUP($AB$6:$AB$80,Spielerliste!$A$1:$C$480,2)) -> Bischelsberger Helmut | AD58: =IF($AB$6:$AB$80="","",VLOOKUP($AB$6:$AB$80,Spielerliste!$A$1:$C$480,3)) -> Wolfurt | AE58: 85 | AF58: 53 | AG58: 138 | AH58: 2 | AI58: 85 | AJ58: 44 | AK58: 129 | AL58: 2 | AM58: 170 | AN58: 97 | AO58: 267 | AP58: 4
A59: 54 | B59: 251 | C59: Kleboth Günther | D59: Vandans | E59: 68 | F59: 34 | G59: 102 | H59: 3 | I59: 63 | J59: 18 | K59: 81 | L59: 9 | M59: 131 | N59: 52 | O59: 183 | P59: 12 | AA59: 54 | AB59: 255 | AC59: =IF($AB$6:$AB$80="","",VLOOKUP($AB$6:$AB$80,Spielerliste!$A$1:$C$480,2)) -> Schwarzendahl Dieter | AD59: =IF($AB$6:$AB$80="","",VLOOKUP($AB$6:$AB$80,Spielerliste!$A$1:$C$480,3)) -> Vandans | AE59: 74 | AF59: 35 | AG59: 109 | AH59: 2 | AI59: 75 | AJ59: 27 | AK59: 102 | AL59: 5 | AM59: 149 | AN59: 62 | AO59: 211 | AP59: 7
A60: 55 | B60: 26 | C60: Hepberger Erwin | D60: Bürs | E60: 61 | F60: 24 | G60: 85 | H60: 5 | I60: 70 | J60: 27 | K60: 97 | L60: 7 | M60: 131 | N60: 51 | O60: 182 | P60: 12 | AA60: 55 | AB60: 272 | AC60: =IF($AB$6:$AB$80="","",VLOOKUP($AB$6:$AB$80,Spielerliste!$A$1:$C$480,2)) -> Moser Mathias | AD60: =IF($AB$6:$AB$80="","",VLOOKUP($AB$6:$AB$80,Spielerliste!$A$1:$C$480,3)) -> Wolfurt | AE60: 82 | AF60: 34 | AG60: 116 | AH60: 4 | AI60: 77 | AJ60: 25 | AK60: 102 | AL60: 5 | AM60: 159 | AN60: 59 | AO60: 218 | AP60: 9
A61: 56 | B61: 176 | C61: Witschnigg Johann | D61: Lustenau | E61: 68 | F61: 17 | G61: 85 | H61: 7 | I61: 70 | J61: 17 | K61: 87 | L61: 11 | M61: 138 | N61: 34 | O61: 172 | P61: 18 | AA61: 56 | AB61: 268 | AC61: =IF($AB$6:$AB$80="","",VLOOKUP($AB$6:$AB$80,Spielerliste!$A$1:$C$480,2)) -> Dostal Christian | AD61: =IF($AB$6:$AB$80="","",VLOOKUP($AB$6:$AB$80,Spielerliste!$A$1:$C$480,3)) -> Wolfurt | AE61: 73 | AF61: 35 | AG61: 108 | AH61: 1 | AI61: 83 | AJ61: 45 | AK61: 128 | AL61: 1 | AM61: 156 | AN61: 80 | AO61: 236 | AP61: 2
AA62: 57 | AB62: 89 | AC62: =IF($AB$6:$AB$80="","",VLOOKUP($AB$6:$AB$80,Spielerliste!$A$1:$C$480,2)) -> Schatzmann Robert | AD62: =IF($AB$6:$AB$80="","",VLOOKUP($AB$6:$AB$80,Spielerliste!$A$1:$C$480,3)) -> Götzis | AE62: 79 | AF62: 34 | AG62: 113 | AH62: 3 | AI62: 74 | AJ62: 34 | AK62: 108 | AL62: 4 | AM62: 153 | AN62: 68 | AO62: 221 | AP62: 7
AA63: 58 | AC63: =IF($AB$6:$AB$80="","",VLOOKUP($AB$6:$AB$80,Spielerliste!$A$1:$C$480,2)) ->  | AD63: =IF($AB$6:$AB$80="","",VLOOKUP($AB$6:$AB$80,Spielerliste!$A$1:$C$480,3)) ->  | AF63: =AG63-AE63 -> 0 | AJ63: =AK63-AI63 -> 0 | AM63: =AE63+AI63 -> 0 | AN63: =AF63+AJ63 -> 0 | AO63: =AG63+AK63 -> 0 | AP63: =AH63+AL63 -> 0
AA64: 59 | AB64: 48 | AC64: =IF($AB$6:$AB$80="","",VLOOKUP($AB$6:$AB$80,Spielerliste!$A$1:$C$480,2)) -> Kofler Reinhard | AD64: =IF($AB$6:$AB$80="","",VLOOKUP($AB$6:$AB$80,Spielerliste!$A$1:$C$480,3)) -> Dornbirn | AE64: 86 | AF64: 27 | AG64: 113 | AH64: 5 | AI64: 72 | AJ64: 27 | AK64: 99 | AL64: 6 | AM64: 158 | AN64: 54 | AO64: 212 | AP64: 11
AA65: 60 | AB65: 40 | AC65: =IF($AB$6:$AB$80="","",VLOOKUP($AB$6:$AB$80,Spielerliste!$A$1:$C$480,2)) -> Ehgartner Wolfgang | AD65: =IF($AB$6:$AB$80="","",VLOOKUP($AB$6:$AB$80,Spielerliste!$A$1:$C$480,3)) -> Dornbirn | AE65: 95 | AF65: 33 | AG65: 128 | AH65: 3 | AI65: 82 | AJ65: 41 | AK65: 123 | AL65: 0 | AM65: 177 | AN65: 74 | AO65: 251 | AP65: 3

Sheet Spielerliste (hidden)
A1: 00:00:00 | B1: 2019-10-22
A2: 1 | B2: Bertsch Gerhard | C2: Bludenz | D2: 1957-03-01 | E2: =LEFT(C2,2) -> Bl | F2: =YEAR(D2) -> 1957 | G2: 2019 | H2: H1 | J2: Bertsch Gerhard H1 | K2: Bertsch Gerhard H1
A3: 2 | B3: Grundner Adolf | C3: Bludenz | D3: 1938-03-31 | E3: Bl | F3: =YEAR(D3) -> 1938 | G3: 2019 | I3: H2 | J3: Grundner Adolf H2 | K3: Grundner Adolf H2
A4: 3 | B4: Battisti Anton | C4: Bludenz | D4: 1951-01-02 | E4: Bl | F4: =YEAR(D4) -> 1951 | G4: 2019 | H4: H1 | J4: Battisti Anton H1 | K4: Battisti Anton H1
A5: 4 | B5: Schöner Kurt | C5: Bludenz | D5: 1938-12-31 | E5: Bl | F5: =YEAR(D5) -> 1938 | G5: 2019 | I5: H2 | J5: Schöner Kurt H2 | K5: Schöner Kurt H2
A6: 5 | B6: Pröckl Heinrich | C6: Bludenz | D6: 1931-10-12 | E6: Bl | F6: =YEAR(D6) -> 1931 | G6: 2019 | I6: H2 | J6: Pröckl Heinrich H2 | K6: Pröckl Heinrich H2
A7: 6
A8: 7
A9: 8
A10: 9
A11: 10
A12: 11 | B12: Berkmann Josef | C12: Bregenz | D12: 1956-10-07 | E12: Br | F12: =YEAR(D12) -> 1956 | G12: 2019 | H12: H1 | J12: Berkmann Josef H1 | K12: Berkmann Josef H1
A13: 12 | B13: Buggelsheim Kurt | C13: Bregenz | D13: 1954-04-18 | E13: Br | F13: 1954 | G13: 2019 | H13: H1 | J13: Buggelsheim Kurt H1 | K13: Buggelsheim Kurt H1
A14: 13 | B14: Cordin Karl Heinz | C14: Bregenz | D14: 1940-07-12 | E14: Br | F14: 1940 | G14: 2019 | I14: H2 | J14: Cordin Karl Heinz H2 | K14: Cordin Karl Heinz H2
A15: 14 | B15: Fischer Peter | C15: Bregenz | D15: 1951-04-07 | E15: Br | F15: 1951 | G15: 2019 | H15: H1 | J15: Fischer Peter H1 | K15: Fischer Peter H1
A16: 15 | B16: Giesinger Raimund | C16: Bregenz | D16: 1951-11-06 | E16: Br | F16: 1951 | G16: 2019 | H16: H1 | J16: Giesinger Raimund H1 | K16: Giesinger Raimund H1
A17: 16 | B17: Natter Helmut | C17: Bregenz | D17: 1938-07-19 | E17: Br | F17: 1938 | G17: 2019 | I17: H2 | J17: Natter Helmut H2 | K17: Natter Helmut H2
A18: 17 | B18: Scheiber Martin | C18: Bregenz | D18: 1956-02-21 | E18: Br | F18: 1956 | G18: 2019 | H18: H1 | J18: Scheiber Martin H1 | K18: Scheiber Martin H1
A19: 18 | B19: Schwärzler Herbert | C19: Bregenz | D19: 1945-01-19 | E19: Br | F19: 1945 | G19: 2019 | I19: H2 | J19: Schwärzler Herbert H2 | K19: Schwärzler Herbert H2
A20: 19 | B20: Stibitzhofer Karl | C20: Bregenz | D20: 1941-05-30 | E20: Br | F20: 1941 | G20: 2019 | I20: H2 | J20: Stibitzhofer Karl H2 | K20: Stibitzhofer Karl H2
A21: 20
A22: 21
A23: 22
A24: 23
A25: 24
A26: 25
A27: 26 | B27: Hepberger Erwin | C27: Bürs | D27: 1947-01-02 | E27: Bü | F27: =YEAR(D27) -> 1947 | G27: 2019 | I27: H2 | J27: Hepberger Erwin H2 | K27: Hepberger Erwin H2
A28: 27 | B28: Scherrer Martin | C28: Bürs | D28: 1948-11-03 | E28: Bü | F28: 1948 | G28: 2019 | I28: H2 | J28: Scherrer Martin H2 | K28: Scherrer Martin H2
A29: 28 | B29: Stadlmayr Wolfgang | C29: Bürs | D29: 1958-05-15 | E29: Bü | F29: 1958 | G29: 2019 | H29: H1 | J29: Stadlmayr Wolfgang H1 | K29: Stadlmayr Wolfgang H1
A30: 29 | B30: Thönig Gilbert | C30: Bürs | D30: 1939-05-21 | E30: Bü | F30: 1939 | G30: 2019 | I30: H2 | J30: Thönig Gilbert H2 | K30: Thönig Gilbert H2
A31: 30 | B31: Virag Peter | C31: Bürs | D31: 1955-12-20 | E31: Bü | F31: 1955 | G31: 2019 | H31: H1 | J31: Virag Peter H1 | K31: Virag Peter H1
A32: 31 | B32: Voltolini Siegfried | C32: Bürs | D32: 1946-10-13 | E32: Bü | F32: 1946 | G32: 2019 | I32: H2 | J32: Voltolini Siegfried H2 | K32: Voltolini Siegfried H2
A33: 32
A34: 33
A35: 34
A36: 35
A37: 36 | B37: Ausserwinkler Adolf | C37: Dornbirn | D37: 1940-05-14 | E37: Do | F37: =YEAR(D37) -> 1940 | G37: 2019 | I37: H2 | J37: Ausserwinkler Adolf H2 | K37: Ausserwinkler Adolf H2
A38: 37 | B38: Berger Hermann | C38: Dornbirn | D38: 1954-06-02 | E38: Do | F38: 1954 | G38: 2019 | H38: H1 | J38: Berger Hermann H1 | K38: Berger Hermann H1
A39: 38 | B39: Berger Reinhard | C39: Dornbirn | D39: 1952-11-26 | E39: Do | F39: 1952 | G39: 2019 | H39: H1 | J39: Berger Reinhard H1 | K39: Berger Reinhard H1
A40: 39 | B40: Berthold Alfons | C40: Dornbirn | D40: 1946-10-10 | E40: Do | F40: 1946 | G40: 2019 | I40: H2 | J40: Berthold Alfons H2 | K40: Berthold Alfons H2
A41: 40 | B41: Ehgartner Wolfgang | C41: Dornbirn | D41: 1946-12-17 | E41: Do | F41: 1946 | G41: 2019 | I41: H2 | J41: Ehgartner Wolfgang H2 | K41: Ehgartner Wolfgang H2
A42: 41 | B42: Ender Fritz | C42: Dornbirn | D42: 1944-03-22 | E42: Do | F42: 1944 | G42: 2019 | I42: H2 | J42: Ender Fritz H2 | K42: Ender Fritz H2
A43: 42 | B43: Fussenegger Anton | C43: Dornbirn | D43: 1942-06-04 | E43: Do | F43: 1942 | G43: 2019 | I43: H2 | J43: Fussenegger Anton H2 | K43: Fussenegger Anton H2
A44: 43 | B44: Gradwohl Josef | C44: Dornbirn | D44: 1959-01-17 | E44: Do | F44: 1959 | G44: 2019 | H44: H1 | J44: Gradwohl Josef H1 | K44: Gradwohl Josef H1
A45: 44 | B45: Herceg Niki | C45: Dornbirn | D45: 1964-08-08 | E45: Do | F45: 1964 | G45: 2019 | H45: H1 | J45: Herceg Niki H1 | K45: Herceg Niki H1
A46: 45 | B46: Kepe Franz | C46: Dornbirn | D46: 1953-11-22 | E46: Do | F46: 1953 | G46: 2019 | H46: H1 | J46: Kepe Franz H1 | K46: Kepe Franz H1
A47: 46 | B47: Kessler Günter | C47: Dornbirn | D47: 1964-08-29 | E47: Do | F47: 1964 | G47: 2019 | H47: H1 | J47: Kessler Günter H1 | K47: Kessler Günter H1
A48: 47 | B48: Kezic Blago | C48: Dornbirn | D48: 1952-11-23 | E48: Do | F48: 1952 | G48: 2019 | H48: H1 | J48: Kezic Blago H1 | K48: Kezic Blago H1
A49: 48 | B49: Kofler Reinhard | C49: Dornbirn | D49: 1946-02-06 | E49: Do | F49: 1946 | G49: 2019 | I49: H2 | J49: Kofler Reinhard H2 | K49: Kofler Reinhard H2
A50: 49 | B50: Köstl Rudolf | C50: Dornbirn | D50: 1939-04-13 | E50: Do | F50: 1939 | G50: 2019 | I50: H2 | J50: Köstl Rudolf H2 | K50: Köstl Rudolf H2
A51: 50 | B51: Mennel Elmar | C51: Dornbirn | D51: 1956-02-04 | E51: Do | F51: 1956 | G51: 2019 | H51: H1 | J51: Mennel Elmar H1 | K51: Mennel Elmar H1
A52: 51 | B52: Natter Josef | C52: Dornbirn | D52: 1940-05-01 | E52: Do | F52: 1940 | G52: 2019 | I52: H2 | J52: Natter Josef H2 | K52: Natter Josef H2
A53: 52 | B53: Schrei Franz | C53: Dornbirn | D53: 1940-09-23 | E53: Do | F53: 1940 | G53: 2019 | I53: H2 | J53: Schrei Franz H2 | K53: Schrei Franz H2
A54: 53 | B54: Stuhlpfarer Fritz | C54: Dornbirn | D54: 1944-02-19 | E54: Do | F54: 1944 | G54: 2019 | I54: H2 | J54: Stuhlpfarer Fritz H2 | K54: Stuhlpfarer Fritz H2
A55: 54 | B55: Vauce Gottfried | C55: Dornbirn | D55: 1959-10-31 | E55: Do | F55: 1959 | G55: 2019 | H55: H1 | J55: Vauce Gottfried H1 | K55: Vauce Gottfried H1
A56: 55 | B56: Winder Josef | C56: Dornbirn | D56: 1947-01-09 | E56: =LEFT(C56,2) -> Do | F56: 1947 | G56: 2019 | I56: H2 | J56: Winder Josef H2 | K56: Winder Josef H2
A57: 56
A58: 57
A59: 58
A60: 59
A61: 60
A62: 61 | B62: Andres Erwin | C62: Feldkirch | D62: 1940-10-03 | E62: =LEFT(C62,2) -> Fe | F62: =YEAR(D62) -> 1940 | G62: 2019 | I62: H2 | J62: Andres Erwin H2 | K62: Andres Erwin H2
A63: 62 | B63: Fink Reinold | C63: Feldkirch | D63: 1947-01-29 | E63: Fe | F63: 1947 | G63: 2019 | I63: H2 | J63: Fink Reinold H2 | K63: Fink Reinold H2
A64: 63 | B64: Kodal Heribert | C64: Feldkirch | D64: 1947-03-08 | E64: Fe | F64: 1947 | G64: 2019 | I64: H2 | J64: Kodal Heribert H2 | K64: Kodal Heribert H2
A65: 64 | B65: Kohan György | C65: Feldkirch | D65: 1937-04-26 | E65: Fe | F65: 1937 | G65: 2019 | I65: H2 | J65: Kohan György H2 | K65: Kohan György H2
A66: 65 | B66: Maier Paul | C66: Feldkirch | D66: 1947-01-24 | E66: Fe | F66: 1947 | G66: 2019 | I66: H2 | J66: Maier Paul H2 | K66: Maier Paul H2
A67: 66 | B67: Mathis Otto | C67: Feldkirch | D67: 1947-12-28 | E67: =LEFT(C67,2) -> Fe | F67: =YEAR(D67) -> 1947 | G67: 2019 | I67: H2 | J67: Mathis Otto H2 | K67: Mathis Otto H2
A68: 67 | B68: Moser Robert | C68: Feldkirch | D68: 1933-01-14 | E68: Fe | F68: 1933 | G68: 2019 | I68: H2 | J68: Moser Robert H2 | K68: Moser Robert H2
A69: 68 | B69: Porod Klaus | C69: Feldkirch | D69: 1942-09-12 | E69: Fe | F69: 1942 | G69: 2019 | I69: H2 | J69: Porod Klaus H2 | K69: Porod Klaus H2
A70: 69 | B70: Rüscher Kolumban | C70: Feldkirch | D70: 1938-12-12 | E70: Fe | F70: 1938 | G70: 2019 | I70: H2 | J70: Rüscher Kolumban H2 | K70: Rüscher Kolumban H2
A71: 70 | B71: Supper Viktor | C71: Feldkirch | D71: 1935-01-12 | E71: Fe | F71: 1935 | G71: 2019 | I71: H2 | J71: Supper Viktor H2 | K71: Supper Viktor H2
A72: 71 | B72: Tammer Eckehart | C72: Feldkirch | D72: 1935-05-25 | E72: Fe | F72: 1935 | G72: 2019 | I72: H2 | J72: Tammer Eckehart H2 | K72: Tammer Eckehart H2
A73: 72
A74: 73
A75: 74
A76: 75
A77: 76
A78: 77
A79: 78
A80: 79
A81: 80
A82: 81 | B82: Abram Bruno | C82: Götzis | D82: 1938-05-16 | E82: Gö | F82: 1938 | G82: 2019 | I82: H2 | J82: Abram Bruno H2 | K82: Abram Bruno H2
A83: 82 | B83: Einwaller Harald | C83: Götzis | D83: 1958-02-27 | E83: Gö | F83: 1958 | G83: 2019 | H83: H1 | J83: Einwaller Harald H1 | K83: Einwaller Harald H1
A84: 83 | B84: Fertschnig Reinhard | C84: Götzis | D84: 1956-01-06 | E84: Gö | F84: 1956 | G84: 2019 | H84: H1 | J84: Fertschnig Reinhard H1 | K84: Fertschnig Reinhard H1
A85: 84 | B85: Fröschl Robert | C85: Götzis | D85: 1931-08-25 | E85: Gö | F85: 1931 | G85: 2019 | I85: H2 | J85: Fröschl Robert H2 | K85: Fröschl Robert H2
A86: 85 | B86: Hyden Walter | C86: Götzis | D86: 1950-06-09 | E86: Gö | F86: 1950 | G86: 2019 | H86: H1 | J86: Hyden Walter H1 | K86: Hyden Walter H1
A87: 86 | B87: Kind Albert | C87: Götzis | D87: 1950-11-14 | E87: Gö | F87: =YEAR(D87) -> 1950 | G87: 2019 | H87: H1 | J87: Kind Albert H1 | K87: Kind Albert H1
A88: 87 | B88: Pürstl Richard | C88: Götzis | D88: 1951-09-07 | E88: Gö | F88: 1951 | G88: 2019 | H88: H1 | J88: Pürstl Richard H1 | K88: Pürstl Richard H1
A89: 88 | B89: Pürstl Wilfried | C89: Götzis | D89: 1950-01-15 | E89: Gö | F89: 1950 | G89: 2019 | H89: H1 | J89: Pürstl Wilfried H1 | K89: Pürstl Wilfried H1
A90: 89 | B90: Schatzmann Robert | C90: Götzis | D90: 1949-05-09 | E90: Gö | F90: 1949 | G90: 2019 | I90: H2 | J90: Schatzmann Robert H2 | K90: Schatzmann Robert H2
A91: 90 | B91: Scherz Ernst | C91: Götzis | D91: 1952-09-11 | E91: Gö | F91: 1952 | G91: 2019 | H91: H1 | J91: Scherz Ernst H1 | K91: Scherz Ernst H1
A92: 91
A93: 92
A94: 93
A95: 94
A96: 95
A97: 96 | B97: Bickel Manfred | C97: Hard | D97: 1940-07-30 | E97: Ha | F97: =YEAR(D97) -> 1940 | G97: 2019 | I97: H2 | J97: Bickel Manfred H2 | K97: Bickel Manfred H2
A98: 97 | B98: Di-Meglio Jean-Luc | C98: Hard | D98: 1951-10-13 | E98: Ha | F98: 1951 | G98: 2019 | H98: H1 | J98: Di-Meglio Jean-Luc H1 | K98: Di-Meglio Jean-Luc H1
A99: 98 | B99: Legen Josef | C99: Hard | D99: 1944-11-01 | E99: Ha | F99: 1944 | G99: 2019 | I99: H2 | J99: Legen Josef H2 | K99: Legen Josef H2
A100: 99 | B100: Linder Hubert | C100: Hard | D100: 1941-11-01 | E100: Ha | F100: 1941 | G100: 2019 | I100: H2 | J100: Linder Hubert H2 | K100: Linder Hubert H2
A101: 100 | B101: Pfanner Klaus | C101: Hard | D101: 1954-03-27 | E101: Ha | F101: 1954 | G101: 2019 | H101: H1 | J101: Pfanner Klaus H1 | K101: Pfanner Klaus H1
A102: 101 | B102: Prutsch Franz | C102: Hard | D102: 1936-04-09 | E102: Ha | F102: 1936 | G102: 2019 | I102: H2 | J102: Prutsch Franz H2 | K102: Prutsch Franz H2
A103: 102 | B103: Stroy Gerhard | C103: Hard | D103: 1935-09-21 | E103: Ha | F103: 1935 | G103: 2019 | I103: H2 | J103: Stroy Gerhard H2 | K103: Stroy Gerhard H2
A104: 103 | B104: Woinesich Reinhard | C104: Hard | D104: 1953-11-17 | E104: Ha | F104: =YEAR(D104) -> 1953 | G104: 2019 | H104: H1 | J104: Woinesich Reinhard H1 | K104: Woinesich Reinhard H1
A105: 104
A106: 105
A107: 106
A108: 107
A109: 108
A110: 109
A111: 110
A112: 111 | B112: Cuk Jure | C112: Hohenems | D112: 1951-03-14 | E112: Ho | F112: 1951 | G112: 2019 | H112: H1 | J112: Cuk Jure H1 | K112: Cuk Jure H1
A113: 112 | B113: Durakovic Mahmud | C113: Hohenems | D113: 1945-09-15 | E113: Ho | F113: 1945 | G113: 2019 | I113: H2 | J113: Durakovic Mahmud H2 | K113: Durakovic Mahmud H2
A114: 113 | B114: Hubinger Reinhard | C114: Hohenems | D114: 1952-11-25 | E114: Ho | F114: 1952 | G114: 2019 | H114: H1 | J114: Hubinger Reinhard H1 | K114: Hubinger Reinhard H1
A115: 114 | B115: Luif Kurt | C115: Hohenems | D115: 1954-04-27 | E115: Ho | F115: 1954 | G115: 2019 | H115: H1 | J115: Luif Kurt H1 | K115: Luif Kurt H1
A116: 115 | B116: Mitteregger Herbert | C116: Hohenems | D116: 1933-08-30 | E116: Ho | F116: 1933 | G116: 2019 | I116: H2 | J116: Mitteregger Herbert H2 | K116: Mitteregger Herbert H2
A117: 116 | B117: Preißl Arnold | C117: Hohenems | D117: 1938-09-11 | E117: Ho | F117: 1938 | G117: 2019 | I117: H2 | J117: Preißl Arnold H2 | K117: Preißl Arnold H2
A118: 117 | B118: Prugg Franz | C118: Hohenems | D118: 1947-03-06 | E118: Ho | F118: 1947 | G118: 2019 | I118: H2 | J118: Prugg Franz H2 | K118: Prugg Franz H2
A119: 118 | B119: Reissner Ludwig | C119: Hohenems | D119: 1940-03-22 | E119: Ho | F119: 1940 | G119: 2019 | I119: H2 | J119: Reissner Ludwig H2 | K119: Reissner Ludwig H2
A120: 119 | B120: Schriebl Günther | C120: Hohenems | D120: 1941-10-06 | E120: Ho | F120: 1941 | G120: 2019 | I120: H2 | J120: Schriebl Günther H2 | K120: Schriebl Günther H2
A121: 120 | B121: Ulrich Anton | C121: Hohenems | D121: 1939-01-27 | E121: Ho | F121: 1939 | G121: 2019 | I121: H2 | J121: Ulrich Anton H2 | K121: Ulrich Anton H2
A122: 121 | B122: Zugec Anton | C122: Hohenems | D122: 1951-04-27 | E122: Ho | F122: 1951 | G122: 2019 | H122: H1 | J122: Zugec Anton H1 | K122: Zugec Anton H1
A123: 122 | B123: Zugec Josef | C123: Hohenems | D123: 1950-01-01 | E123: Ho | F123: 1950 | G123: 2019 | H123: H1 | J123: Zugec Josef H1 | K123: Zugec Josef H1
A124: 123
A125: 124
A126: 125
A127: 126
A128: 127
A129: 128
A130: 129
A131: 130 | E131: =LEFT(C131,2) -> 
A132: 131 | B132: Bolter Mario | C132: Koblach | D132: 1967-02-15 | E132: Ko | F132: =YEAR(D132) -> 1967 | G132: 2019 | H132: H1 | J132: Bolter Mario H1 | K132: Bolter Mario H1
A133: 132 | B133: Bottesi Siegfried | C133: Koblach | D133: 1940-08-12 | E133: Ko | F133: 1940 | G133: 2019 | I133: H2 | J133: Bottesi Siegfried H2 | K133: Bottesi Siegfried H2
A134: 133 | B134: Egle Norbert | C134: Koblach | D134: 1949-10-27 | E134: Ko | F134: 1949 | G134: 2019 | I134: H2 | J134: Egle Norbert H2 | K134: Egle Norbert H2
A135: 134 | B135: Fessler Gerd | C135: Koblach | D135: 1956-10-30 | E135: Ko | F135: 1956 | G135: 2019 | H135: H1 | J135: Fessler Gerd H1 | K135: Fessler Gerd H1
A136: 135 | B136: Fleisch Friedl | C136: Koblach | D136: 1944-01-24 | E136: Ko | F136: 1944 | G136: 2019 | I136: H2 | J136: Fleisch Friedl H2 | K136: Fleisch Friedl H2
A137: 136 | B137: Grassmugg Josef | C137: Koblach | D137: 1961-12-11 | E137: =LEFT(C137,2) -> Ko | F137: =YEAR(D137) -> 1961 | G137: 2020 | H137: H1 | J137: Grassmugg Josef H1 | K137: Grassmugg Josef H1
A138: 137 | B138: Haaser Andreas | C138: Koblach | D138: 1962-02-17 | E138: Ko | F138: 1962 | G138: 2021 | H138: H1 | J138: Haaser Andreas H1 | K138: Haaser Andreas H1
A139: 138 | B139: Häusle Norbert | C139: Koblach | D139: 1954-05-29 | E139: Ko | F139: 1954 | G139: 2022 | H139: H1 | J139: Häusle Norbert H1 | K139: Häusle Norbert H1
A140: 139 | B140: Häusle Reinhold | C140: Koblach | D140: 1948-10-13 | E140: Ko | F140: 1948 | G140: 2023 | I140: H2 | J140: Häusle Reinhold H2 | K140: Häusle Reinhold H2
A141: 140 | B141: Hohensinger Franz | C141: Koblach | D141: 1946-01-21 | E141: Ko | F141: 1946 | G141: 2024 | I141: H2 | J141: Hohensinger Franz H2 | K141: Hohensinger Franz H2
A142: 141 | B142: Iles Stevan | C142: Koblach | D142: 1967-01-24 | E142: Ko | F142: 1967 | G142: 2025 | H142: H1 | J142: Iles Stevan H1 | K142: Iles Stevan H1
A143: 142 | B143: Irovec Viktor | C143: Koblach | D143: 1966-12-17 | E143: Ko | F143: =YEAR(D143) -> 1966 | G143: 2019 | H143: H1 | J143: Irovec Viktor H1 | K143: Irovec Viktor H1
A144: 143 | B144: Jaindl Robert | C144: Koblach | D144: 1949-11-26 | E144: Ko | F144: 1949 | G144: 2019 | I144: H2 | J144: Jaindl Robert H2 | K144: Jaindl Robert H2
A145: 144 | B145: Marte Bruno | C145: Koblach | D145: 1944-12-03 | E145: Ko | F145: 1944 | G145: 2019 | I145: H2 | J145: Marte Bruno H2 | K145: Marte Bruno H2
A146: 145 | B146: Metzler Johann | C146: Koblach | D146: 1955-07-08 | E146: Ko | F146: 1955 | G146: 2019 | H146: H1 | J146: Metzler Johann H1 | K146: Metzler Johann H1
A147: 146 | B147: Nikolic Milosav | C147: Koblach | D147: 1960-02-02 | E147: Ko | F147: =YEAR(D147) -> 1960 | G147: 2019 | H147: H1 | J147: Nikolic Milosav H1 | K147: Nikolic Milosav H1
A148: 147 | B148: Pieber Anton | C148: Koblach | D148: 1937-07-22 | E148: Ko | F148: 1937 | G148: 2019 | I148: H2 | J148: Pieber Anton H2 | K148: Pieber Anton H2
A149: 148 | B149: Schatzer Günther | C149: Koblach | D149: 1946-02-23 | E149: Ko | F149: 1946 | G149: 2019 | I149: H2 | J149: Schatzer Günther H2 | K149: Schatzer Günther H2
A150: 149 | B150: Schellhorn Ludwig | C150: Koblach | D150: 1943-05-19 | E150: Ko | F150: 1943 | G150: 2019 | I150: H2 | J150: Schellhorn Ludwig H2 | K150: Schellhorn Ludwig H2
A151: 150 | B151: Schuler Hans | C151: Koblach | D151: 1946-12-15 | E151: Ko | F151: 1946 | G151: 2019 | I151: H2 | J151: Schuler Hans H2 | K151: Schuler Hans H2
A152: 151 | B152: Tusch Norbert | C152: Koblach | D152: 1959-09-23 | E152: Ko | F152: 1959 | G152: 2019 | H152: H1 | J152: Tusch Norbert H1 | K152: Tusch Norbert H1
A153: 152
A154: 153
A155: 154
A156: 155
A157: 156 | B157: Baumgartner Ludwig | C157: Lauterach | D157: 1945-08-16 | E157: La | F157: 1945 | G157: 2019 | I157: H2 | J157: Baumgartner Ludwig H2 | K157: Baumgartner Ludwig H2
A158: 157 | B158: Braitsch Wilfried | C158: Lauterach | D158: 1934-02-13 | E158: La | F158: 1934 | G158: 2019 | I158: H2 | J158: Braitsch Wilfried H2 | K158: Braitsch Wilfried H2
A159: 158 | B159: Dür Wilfried | C159: Lauterach | D159: 1948-01-28 | E159: La | F159: 1948 | G159: 2019 | I159: H2 | J159: Dür Wilfried H2 | K159: Dür Wilfried H2
A160: 159 | B160: Handler Luis | C160: Lauterach | D160: 1949-06-21 | E160: La | F160: 1949 | G160: 2019 | I160: H2 | J160: Handler Luis H2 | K160: Handler Luis H2
A161: 160 | B161: Heim Werner | C161: Lauterach | D161: 1939-12-09 | E161: La | F161: 1939 | G161: 2019 | I161: H2 | J161: Heim Werner H2 | K161: Heim Werner H2
A162: 161 | B162: Koppler Günter | C162: Lauterach | D162: 1947-01-29 | E162: La | F162: 1947 | G162: 2019 | I162: H2 | J162: Koppler Günter H2 | K162: Koppler Günter H2
A163: 162
A164: 163
A165: 164
A166: 165
A167: 166 | B167: Brauchard Johann | C167: Lustenau | D167: 1943-10-24 | E167: Lu | F167: =YEAR(D167) -> 1943 | G167: 2019 | I167: H2 | J167: Brauchard Johann H2 | K167: Brauchard Johann H2
A168: 167 | B168: Felder Reinhard | C168: Lustenau | D168: 1953-01-01 | E168: Lu | F168: 1953 | G168: 2019 | H168: H1 | J168: Felder Reinhard H1 | K168: Felder Reinhard H1
A169: 168 | B169: Hoos Ferenc | C169: Lustenau | D169: 1932-07-18 | E169: Lu | F169: 1932 | G169: 2019 | I169: H2 | J169: Hoos Ferenc H2 | K169: Hoos Ferenc H2
A170: 169 | B170: Isele Kurt | C170: Lustenau | D170: 1954-08-25 | E170: Lu | F170: 1954 | G170: 2019 | H170: H1 | J170: Isele Kurt H1 | K170: Isele Kurt H1
A171: 170 | B171: Karitnig Franz | C171: Lustenau | D171: 1938-12-09 | E171: Lu | F171: 1938 | G171: 2019 | I171: H2 | J171: Karitnig Franz H2 | K171: Karitnig Franz H2
A172: 171 | B172: Mesotitsch Anton | C172: Lustenau | D172: 1949-08-11 | E172: Lu | F172: 1949 | G172: 2019 | I172: H2 | J172: Mesotitsch Anton H2 | K172: Mesotitsch Anton H2
A173: 172 | B173: Millien Karl | C173: Lustenau | D173: 1936-11-22 | E173: Lu | F173: 1936 | G173: 2019 | I173: H2 | J173: Millien Karl H2 | K173: Millien Karl H2
A174: 173 | B174: Mosbacher Otmar | C174: Lustenau | D174: 1937-10-04 | E174: Lu | F174: 1937 | G174: 2019 | I174: H2 | J174: Mosbacher Otmar H2 | K174: Mosbacher Otmar H2
A175: 174 | B175: Riedmann Werner | C175: Lustenau | D175: 1957-03-29 | E175: Lu | F175: 1957 | G175: 2019 | H175: H1 | J175: Riedmann Werner H1 | K175: Riedmann Werner H1
A176: 175 | B176: Trippl Helmut | C176: Lustenau | D176: 1939-06-05 | E176: Lu | F176: 1939 | G176: 2019 | I176: H2 | J176: Trippl Helmut H2 | K176: Trippl Helmut H2
A177: 176 | B177: Witschnigg Johann | C177: Lustenau | D177: 1947-06-22 | E177: Lu | F177: 1947 | G177: 2019 | I177: H2 | J177: Witschnigg Johann H2 | K177: Witschnigg Johann H2
A178: 177
A179: 178
A180: 179
A181: 180
A182: 181 | B182: Ebenhoch Paul | C182: Mäder | D182: 1954-02-16 | E182: Mä | F182: =YEAR(D182) -> 1954 | G182: 2019 | H182: H1 | J182: Ebenhoch Paul H1 | K182: Ebenhoch Paul H1
A183: 182 | B183: Ender Heinrich | C183: Mäder | D183: 1951-07-12 | E183: Mä | F183: 1951 | G183: 2019 | H183: H1 | J183: Ender Heinrich H1 | K183: Ender Heinrich H1
A184: 183 | B184: Fischer Wolfgang | C184: Mäder | D184: 1949-11-19 | E184: Mä | F184: 1949 | G184: 2019 | I184: H2 | J184: Fischer Wolfgang H2 | K184: Fischer Wolfgang H2
A185: 184 | B185: Heinle Otmar | C185: Mäder | D185: 1951-01-14 | E185: Mä | F185: 1951 | G185: 2019 | H185: H1 | J185: Heinle Otmar | K185: Heinle Otmar
A186: 185 | B186: Hinteregger Erwin | C186: Mäder | D186: 1952-08-28 | E186: Mä | F186: 1952 | G186: 2019 | H186: H1 | J186: Hinteregger Erwin H1 | K186: Hinteregger Erwin H1
A187: 186 | B187: Kofler Siegfried | C187: Mäder | D187: 1956-02-13 | E187: Mä | F187: 1956 | G187: 2019 | H187: H1 | J187: Kofler Siegfried H1 | K187: Kofler Siegfried H1
A188: 187 | B188: Kuen Ekke | C188: Mäder | D188: 1951-06-06 | E188: Mä | F188: 1951 | G188: 2019 | H188: H1 | J188: Kuen Ekke H1 | K188: Kuen Ekke H1
A189: 188 | B189: Riedmann Wolfgang | C189: Mäder | D189: 1955-02-15 | E189: Mä | F189: 1955 | G189: 2019 | H189: H1 | J189: Riedmann Wolfg. H1 | K189: Riedmann Wolfg. H1
A190: 189 | B190: Riedmann Markus | C190: Mäder | D190: 1959-11-03 | E190: Mä | F190: 1959 | G190: 2019 | H190: H1 | J190: Riedmann Markus H1 | K190: Riedmann Markus H1
A191: 190 | B191: Riegler Gert | C191: Mäder | D191: 1967-11-28 | E191: Mä | F191: 1967 | G191: 2019 | H191: H1 | J191: Riegler Gert H1 | K191: Riegler Gert H1
A192: 191 | B192: Rossmann Alois | C192: Mäder | D192: 1941-12-11 | E192: Mä | F192: 1941 | G192: 2019 | I192: H2 | J192: Rossmann Alois H2 | K192: Rossmann Alois H2
A193: 192 | B193: Sandholzer Alfred | C193: Mäder | D193: 1951-03-24 | E193: Mä | F193: 1951 | G193: 2019 | H193: H1 | J193: Sandholzer Alfred H1 | K193: Sandholzer Alfred H1
A194: 193 | B194: Vallant Karl | C194: Mäder | D194: 1941-10-06 | E194: Mä | F194: 1941 | G194: 2019 | I194: H2 | J194: Vallant Karl H2 | K194: Vallant Karl H2
A195: 194 | E195: =LEFT(C195,2) -> 
A196: 195
A197: 196 | B197: Gopp Lothar | C197: Nofels | D197: 1938-06-22 | E197: No | F197: 1938 | G197: 2019 | I197: H2 | J197: Gopp Lothar H2 | K197: Gopp Lothar H2
A198: 197 | B198: Lins Josef | C198: Nofels | D198: 1946-03-20 | E198: No | F198: 1946 | G198: 2019 | I198: H2 | J198: Lins Josef H2 | K198: Lins Josef H2
A199: 198 | B199: Mair Otmar | C199: Nofels | D199: 1952-10-14 | E199: No | F199: 1952 | G199: 2019 | H199: H1 | J199: Mair Otmar H1 | K199: Mair Otmar H1
A200: 199 | B200: Paulitsch Gottfried | C200: Nofels | D200: 1960-11-06 | E200: No | F200: 1960 | G200: 2019 | H200: H1 | J200: Paulitsch Gottfried H1 | K200: Paulitsch Gottfried H1
... 281 more rows

Sheet Tabelle1 (hidden)
A4: Neigungsgruppe Kegeln
A5: Einzelmeisterschaft 2012/13
